Workbook

Sheet Instructions
A1: Rental Vehicle Use Tracking and Cost Allocation Tool | G1: Je vous prie de me contacter a l'adresse e-mail a gouche si vous avez des problems avec ce cahier Excel. Les cahiers Excel que je cree sont proteges, mais sans mot de pass. Ce systeme protege les formules et fonctions dans le cahier et ses fichiers, mais l'utilisateur pourra changer les fichiers si necessaire. Pour unlever la protection, cliquer "Outils / Protection / Desactiver protection de la feuille." Je suggere fortement qu'apres avoir modifier une feuille, que l'utilsateur rends active la protection encore. Ne pas mettre un mot de pass quand demande par Excel.
A2: Workbook cree en 2015 par: | D2: Dave Coddington Emergency Operations TA Bangui, CAR dave_coddington@netzero.com
A3: Use of the Workbook
A4: CRS loue souvent des vehicules, a court et a long terme. Il faut gerer and suivre l'utilisation de ces vehicules pour pouvoir justifier un paiement de services, selon le contrat. En plus, plusieurs projets pourront beneficier de l'utilisation des vehicules, et il faut faire une allocation des couts lies a cette utilsation. Ce cahier est ces fichers a ete cree pour aider les gestionnaire des projets, les agents d'opertions, et les agents de la logistique a suivre les depenses lies aux vehicules de location et d'attibuer ces depenses aux projets d'un facon equitable et justificable. La personne resonsable pour la gestion des vehicles de locations fera l'entrer des donners comme necessaire, et finira par imprimer les feuilles de chaque vehicule mensuellement ou selon les demands du staff cadre. Ces documents servent a justifier le paiement oux fournissuers ainsi que l'attribution des couts au niveau de Finance.
A5: Macros
A6: Ce cahier contient des Macros ecrit en code Visual Basic (VBA). Ces macros font des operations de formatting en utilisant des liens et des command inities sur le clavier. Pour faire fonctionner ces macro, le niveau de securite de votre ordinateur devrait etre mis a moyen ou minimum. Cliquer "Ficher / Options / Securite / Macro" et choisir Moyen ou Minimum. Si la buton Haut Security est activee, les macros ne fonctionnent pas. Si la buton Moyen Securite est activee, chaque fois que le cahier est ouvert, chaque fois que le cahier est ouvert Excel demadera si l'utilsateur voudrait bien activer ou desactiver les macros (choisir "Activer"). Nous recommandons ce niveau de securite. Si la buton Minimum Securite est activee, les macros fonctionnent sans massage d'alerte. Mais, cela pourra mettre en risque votre ordinateur vis a vis des macros importes des sources inconnues. Ce niveau n'est pas recommande.
A7: Set default options
A8: Mettre les valuer defaults si-dessus:
A9: Entrer le nom du pays: | G9: RCA | J9: ENTRER L'INFORMATION EN MAJISCULES!
A11: Entrer le nom du bureau ou sous-bureau: | G11: BOSSANGOA
A13: Entrer la code de la monnaie locale (e.g., FCFA, USD, KWA): | G13: FCFA
A15: Entrer le periode du rapport: | E15: DECEMBRE 2014
D18: No. Plaque d'Immatriculation | G18: Marque et Modele
A19: Vehicule de Location #1: | D19: 607AGQ60 | G19: Camion de Location
A21: Vehicule de Location #2: | D21: 206CD038 | G21: Camion UNHCR
A23: Vehicule de Location #3: | D23: DA153MB | G23: Location Mobile 6
A25: Vehicule de Location #4: | D25: DE502BG | G25: Location Mobile 8
A27: Vehicule de Location #5:
A29: Vehicule de Location #6:
A31: Vehicule de Location #7:
A33: Vehicule de Location #8:
A35: Vehicule de Location #9:
A37: Vehicule de Location #10:
A39: Vehicule de Location #11:
A41: Vehicule de Location #12:
A43: Apres avoir entrer les defaults si-dessus, sauvegarder le cahier avec un autre nom. Par exemple, donner le nom "Vehicule de Location Gestion et Allocation (CAR Bossangoa - Vierge)."
A44: Pour l'utiliser, ouvrir le cahier "Vehicule de Location Gestion et Allocation (CAR Bossangoa - Vierge)," et sauvegarde avec le nom "Vehicule de Location Gestion et Allocation (CAR Bossangoa) (periode du rapport)."
A45: ATTENTION!
A46: NE PAS CHANGER l'ordre des colons dans les fichers.
A47: NE PAS CHANGER le nom de ce fichier "Instructions."
A48: NE PAS EMPLOYE un mot de pass nul part das ce cahier.

Sheet Rental Vehicle (1)
A1: CRS VEHICULE DE LOCATION -- FICHE D'UTILSATION ET ALLOCATION DES COUTS
A2: Bureau: | B2: =Instructions!G11 -> BOSSANGOA | G2: Véhicule ID, Marque et Modèle: | J2: =IF(Instructions!D19=0,0,Instructions!D19&", "&Instructions!G19) -> 607AGQ60, Camion de Location
A3: Période: | B3: =Instructions!E15 -> DECEMBRE 2014 | G3: Propriétaire du Véhicule:
A5: Code LC: | B5: =Instructions!G13 -> FCFA | D5: Taux Journalier: | F5: =B5 -> FCFA | G5: 70000 | H5: Supplément Horaire: | K5: =B5 -> FCFA
A7: MAX Heures de Service: | H7: 23:59:00
B9: CALCULE - PAIEMENT POUR LOCATION | I9: DEDUCTIONS | M9: MONTANT DU
A10: Date | B10: Heure Début | C10: Heure Fin | D10: Heures de Service | E10: ="Montant ("&B5&")" -> Montant (FCFA) | F10: Heures Supp | G10: Paiement - Heures Supp | H10: ="Paiement Dû ("&B5&")" -> Paiement Dû (FCFA) | I10: Avances Carburant | J10: Avances Salaire | K10: Autres Avances | L10: Déductions Totales | M10: ="Montant Journalier ("&B5&")" -> Montant Journalier (FCFA) | O10: Total | P10: Reg | Q10: OT1 | R10: OT2
A11: 2014-12-01 | D11: =IF(P11=0,0,P11) -> 00:00:00 | E11: =IF(D11=0,0,G$5) -> 0 | F11: =Q11 -> 00:00:00 | G11: =IF(F11=0,0,R11*L$5) -> 0 | H11: =E11+G11 -> 0 | L11: =-SUM(I11:K11) -> 0 | M11: =IF(H11=0,0,H11+L11) -> 0 | O11: =IF(C11=0,0,IF(C11>B11,C11-B11,C11+1-B11)) -> 00:00:00 | P11: =IF(O11>H$7,H$7,O11) -> 00:00:00 | Q11: =IF(O11>P11,O11-P11,0) -> 0 | R11: =(O11-P11)*24 -> 0
A12: =IF(A11=0,0,A11+1) -> 2014-12-02 | D12: =IF(P12=0,0,P12) -> 00:00:00 | E12: =IF(D12=0,0,G$5) -> 0 | F12: =Q12 -> 00:00:00 | G12: 0 | H12: =E12+G12 -> 0 | L12: =-SUM(I12:K12) -> 0 | M12: =IF(H12=0,0,H12+L12) -> 0 | O12: =IF(C12=0,0,IF(C12>B12,C12-B12,C12+1-B12)) -> 00:00:00 | P12: =IF(O12>H$7,H$7,O12) -> 00:00:00 | Q12: =IF(O12>P12,O12-P12,0) -> 0 | R12: =(O12-P12)*24 -> 0
A13: =IF(A12=0,0,A12+1) -> 2014-12-03 | D13: 00:00:00 | E13: 0 | F13: 00:00:00 | G13: 0 | H13: 0 | L13: 0 | M13: 0 | O13: 00:00:00 | P13: 00:00:00 | Q13: 0 | R13: 0
A14: 2014-12-04 | D14: 00:00:00 | E14: 0 | F14: 00:00:00 | G14: 0 | H14: 0 | L14: 0 | M14: 0 | O14: 00:00:00 | P14: 00:00:00 | Q14: 0 | R14: 0
A15: 2014-12-05 | D15: 00:00:00 | E15: 0 | F15: 00:00:00 | G15: 0 | H15: 0 | L15: 0 | M15: 0 | O15: 00:00:00 | P15: 00:00:00 | Q15: 0 | R15: 0
A16: 2014-12-06 | D16: 00:00:00 | E16: 0 | F16: 00:00:00 | G16: 0 | H16: 0 | L16: 0 | M16: 0 | O16: 00:00:00 | P16: 00:00:00 | Q16: 0 | R16: 0
A17: 2014-12-07 | D17: =IF(P17=0,0,P17) -> 00:00:00 | E17: 0 | F17: 00:00:00 | G17: 0 | H17: =E17+G17 -> 0 | L17: 0 | M17: 0 | O17: 00:00:00 | P17: 00:00:00 | Q17: 0 | R17: 0
A18: 2014-12-08 | D18: 00:00:00 | E18: 0 | F18: 00:00:00 | G18: 0 | H18: 0 | L18: 0 | M18: 0 | O18: 00:00:00 | P18: 00:00:00 | Q18: 0 | R18: 0
A19: 2014-12-09 | D19: 00:00:00 | E19: 0 | F19: 00:00:00 | G19: 0 | H19: 0 | L19: 0 | M19: 0 | O19: 00:00:00 | P19: 00:00:00 | Q19: 0 | R19: 0
A20: 2014-12-10 | D20: 00:00:00 | E20: 0 | F20: 00:00:00 | G20: 0 | H20: 0 | L20: 0 | M20: 0 | O20: 00:00:00 | P20: 00:00:00 | Q20: 0 | R20: 0
A21: 2014-12-11 | D21: 00:00:00 | E21: 0 | F21: 00:00:00 | G21: 0 | H21: 0 | L21: 0 | M21: 0 | O21: 00:00:00 | P21: 00:00:00 | Q21: 0 | R21: 0
A22: 2014-12-12 | D22: 00:00:00 | E22: 0 | F22: 00:00:00 | G22: 0 | H22: 0 | L22: 0 | M22: 0 | O22: 00:00:00 | P22: 00:00:00 | Q22: 0 | R22: 0
A23: 2014-12-13 | D23: 00:00:00 | E23: 0 | F23: 00:00:00 | G23: 0 | H23: 0 | L23: 0 | M23: 0 | O23: 00:00:00 | P23: 00:00:00 | Q23: 0 | R23: 0
A24: 2014-12-14 | D24: 00:00:00 | E24: 0 | F24: 00:00:00 | G24: 0 | H24: 0 | L24: 0 | M24: 0 | O24: 00:00:00 | P24: 00:00:00 | Q24: 0 | R24: 0
A25: 2014-12-15 | D25: 00:00:00 | E25: 0 | F25: 00:00:00 | G25: 0 | H25: 0 | L25: 0 | M25: 0 | O25: 00:00:00 | P25: 00:00:00 | Q25: 0 | R25: 0
A26: 2014-12-16 | D26: =IF(P26=0,0,P26) -> 00:00:00 | E26: 0 | F26: 00:00:00 | G26: 0 | H26: =E26+G26 -> 0 | L26: 0 | M26: 0 | O26: 00:00:00 | P26: 00:00:00 | Q26: 0 | R26: 0
A27: 2014-12-17 | D27: 00:00:00 | E27: 0 | F27: 00:00:00 | G27: 0 | H27: 0 | L27: 0 | M27: 0 | O27: 00:00:00 | P27: 00:00:00 | Q27: 0 | R27: 0
A28: 2014-12-18 | D28: 00:00:00 | E28: 0 | F28: 00:00:00 | G28: 0 | H28: 0 | L28: 0 | M28: 0 | O28: 00:00:00 | P28: 00:00:00 | Q28: 0 | R28: 0
A29: 2014-12-19 | D29: 00:00:00 | E29: 0 | F29: 00:00:00 | G29: 0 | H29: 0 | L29: 0 | M29: 0 | O29: 00:00:00 | P29: 00:00:00 | Q29: 0 | R29: 0
A30: 2014-12-20 | D30: 00:00:00 | E30: 0 | F30: 00:00:00 | G30: 0 | H30: 0 | L30: 0 | M30: 0 | O30: 00:00:00 | P30: 00:00:00 | Q30: 0 | R30: 0
A31: 2014-12-21 | D31: 00:00:00 | E31: 0 | F31: 00:00:00 | G31: 0 | H31: 0 | L31: 0 | M31: 0 | O31: 00:00:00 | P31: 00:00:00 | Q31: 0 | R31: 0
A32: 2014-12-22 | D32: 00:00:00 | E32: 0 | F32: 00:00:00 | G32: 0 | H32: 0 | L32: 0 | M32: 0 | O32: 00:00:00 | P32: 00:00:00 | Q32: 0 | R32: 0
A33: 2014-12-23 | D33: 00:00:00 | E33: 0 | F33: 00:00:00 | G33: 0 | H33: 0 | L33: 0 | M33: 0 | O33: 00:00:00 | P33: 00:00:00 | Q33: 0 | R33: 0
A34: 2014-12-24 | D34: 00:00:00 | E34: 0 | F34: 00:00:00 | G34: 0 | H34: 0 | L34: 0 | M34: 0 | O34: 00:00:00 | P34: 00:00:00 | Q34: 0 | R34: 0
A35: 2014-12-25 | D35: 00:00:00 | E35: 0 | F35: 00:00:00 | G35: 0 | H35: 0 | L35: 0 | M35: 0 | O35: 00:00:00 | P35: 00:00:00 | Q35: 0 | R35: 0
A36: 2014-12-26 | D36: 00:00:00 | E36: 0 | F36: 00:00:00 | G36: 0 | H36: 0 | L36: 0 | M36: 0 | O36: 00:00:00 | P36: 00:00:00 | Q36: 0 | R36: 0
A37: 2014-12-27 | D37: 00:00:00 | E37: 0 | F37: 00:00:00 | G37: 0 | H37: 0 | L37: 0 | M37: 0 | O37: 00:00:00 | P37: 00:00:00 | Q37: 0 | R37: 0
A38: 2014-12-28 | D38: 00:00:00 | E38: 0 | F38: 00:00:00 | G38: 0 | H38: 0 | L38: 0 | M38: 0 | O38: 00:00:00 | P38: 00:00:00 | Q38: 0 | R38: 0
A39: 2014-12-29 | D39: 00:00:00 | E39: 0 | F39: 00:00:00 | G39: 0 | H39: 0 | L39: 0 | M39: 0 | O39: 00:00:00 | P39: 00:00:00 | Q39: 0 | R39: 0
A40: 2014-12-30 | D40: 00:00:00 | E40: 0 | F40: 00:00:00 | G40: 0 | H40: 0 | L40: 0 | M40: 0 | O40: 00:00:00 | P40: 00:00:00 | Q40: 0 | R40: 0
A41: 2014-12-31 | D41: 00:00:00 | E41: 0 | F41: 00:00:00 | G41: 0 | H41: 0 | L41: 0 | M41: 0 | O41: 00:00:00 | P41: 00:00:00 | Q41: 0 | R41: 0
A42: TOTAUX: | D42: =SUM(D11:D41) -> 0 | E42: 0 | F42: 0 | G42: 0 | H42: 0 | I42: 0 | J42: =SUM(J10:J41) -> 0 | K42: =SUM(K10:K41) -> 0 | L42: =SUM(L11:L41) -> 0 | M42: =SUM(M11:M41) -> 0
A45: Total KM parcourue selon le Log Sheets: | C45: 160 | E45: Qté (L) de Carburant Fournis par CRS: | G45: 40 | H45: Prix par Litre de Carburant: | J45: 870 | K45: Cout de Carburant = | M45: =IF(G45=0,0,G45*J45) -> 34800
K46: Montant d'Allocation = | M46: =M42+M45 -> 34800
G48: Allocation des Couts
A49: DSPNs (ayant bénéficié du véhicule) | C49: KM parcourus par DSPN | E49: % utilisation par DSPN | F49: Location | H49: Carburant | J49: Total
A50: 15506209101 | C50: =IF(SUM(C51:D59)>=C45,0,(C45-SUM(C51:D59))) -> 45 | E50: =IF(C$45=0,0,C50/C$45) -> 0.28125 | F50: =E50*M$42 -> 0 | H50: =E50*M$45 -> 9787.5 | J50: =F50+H50 -> 9787.5
A51: 67716200059 | C51: 115 | E51: =IF(C$45=0,0,C51/C$45) -> 0.71875 | F51: =E51*M$42 -> 0 | H51: =E51*M$45 -> 25012.5 | J51: =F51+H51 -> 25012.5
E52: 0 | F52: 0 | H52: 0 | J52: =F52+H52 -> 0
E53: 0 | F53: =E53*M$42 -> 0 | H53: =E53*M$45 -> 0 | J53: =F53+H53 -> 0
E54: 0 | F54: 0 | H54: 0 | J54: 0
E55: 0 | F55: 0 | H55: 0 | J55: 0
E56: 0 | F56: 0 | H56: 0 | J56: 0
E57: 0 | F57: 0 | H57: 0 | J57: 0
E58: 0 | F58: 0 | H58: 0 | J58: 0
E59: 0 | F59: 0 | H59: 0 | J59: =F59+H59 -> 0
A60: TOTAL (pour vérification): | C60: =SUM(C50:D59) -> 160 | E60: =SUM(E50:E59) -> 1 | F60: =SUM(F50:G59) -> 0 | H60: =SUM(H50:I59) -> 34800 | J60: =SUM(J50:K59) -> 34800
A63: Repport prepare par (signature et date) | G63: Rapport verifie et approve (signature et date) | K63: Payment approve par (signature et date)

Sheet Rental Vehicle (2)
A1: CRS VEHICULE DE LOCATION -- FICHE D'UTILSATION ET ALLOCATION DES COUTS
A2: Bureau: | B2: =Instructions!G11 -> BOSSANGOA | G2: Véhicule ID, Marque et Modèle: | J2: =IF(Instructions!D21=0,0,Instructions!D21&", "&Instructions!G21) -> 206CD038, Camion UNHCR
A3: Période: | B3: =Instructions!E15 -> DECEMBRE 2014 | G3: Propriétaire du Véhicule:
A5: Code LC: | B5: =Instructions!G13 -> FCFA | D5: Taux Journalier: | F5: =B5 -> FCFA | H5: Supplément Horaire: | K5: =B5 -> FCFA
A7: MAX Heures de Service: | H7: 23:59:00
B9: CALCULE - PAIEMENT POUR LOCATION | I9: DEDUCTIONS | M9: MONTANT DU
A10: Date | B10: Heure Début | C10: Heure Fin | D10: Heures de Service | E10: ="Montant ("&B5&")" -> Montant (FCFA) | F10: Heures Supp | G10: Paiement - Heures Supp | H10: ="Paiement Dû ("&B5&")" -> Paiement Dû (FCFA) | I10: Avances Carburant | J10: Avances Salaire | K10: Autres Avances | L10: Déductions Totales | M10: ="Montant Journalier ("&B5&")" -> Montant Journalier (FCFA) | O10: Total | P10: Reg | Q10: OT1 | R10: OT2
A11: ='Rental Vehicle (1)'!A11 -> 2014-12-01 | D11: =IF(P11=0,0,P11) -> 00:00:00 | E11: =IF(D11=0,0,G$5) -> 0 | F11: =Q11 -> 00:00:00 | G11: =IF(F11=0,0,R11*L$5) -> 0 | H11: =E11+G11 -> 0 | L11: =-SUM(I11:K11) -> 0 | M11: =IF(H11=0,0,H11+L11) -> 0 | O11: =IF(C11=0,0,IF(C11>B11,C11-B11,C11+1-B11)) -> 00:00:00 | P11: =IF(O11>H$7,H$7,O11) -> 00:00:00 | Q11: =IF(O11>P11,O11-P11,0) -> 0 | R11: =(O11-P11)*24 -> 0
A12: =IF(A11=0,0,A11+1) -> 2014-12-02 | D12: =IF(P12=0,0,P12) -> 00:00:00 | E12: =IF(D12=0,0,G$5) -> 0 | F12: =Q12 -> 00:00:00 | G12: 0 | H12: 0 | L12: =-SUM(I12:K12) -> 0 | M12: =IF(H12=0,0,H12+L12) -> 0 | O12: =IF(C12=0,0,IF(C12>B12,C12-B12,C12+1-B12)) -> 00:00:00 | P12: 00:00:00 | Q12: =IF(O12>P12,O12-P12,0) -> 0 | R12: =(O12-P12)*24 -> 0
A13: =IF(A12=0,0,A12+1) -> 2014-12-03 | D13: 00:00:00 | E13: 0 | F13: 00:00:00 | G13: 0 | H13: 0 | L13: 0 | M13: 0 | O13: 00:00:00 | P13: 00:00:00 | Q13: 0 | R13: 0
A14: 2014-12-04 | D14: 00:00:00 | E14: 0 | F14: 00:00:00 | G14: 0 | H14: 0 | L14: 0 | M14: 0 | O14: 00:00:00 | P14: 00:00:00 | Q14: 0 | R14: 0
A15: 2014-12-05 | D15: 00:00:00 | E15: 0 | F15: 00:00:00 | G15: 0 | H15: 0 | L15: 0 | M15: 0 | O15: 00:00:00 | P15: 00:00:00 | Q15: 0 | R15: 0
A16: 2014-12-06 | D16: 00:00:00 | E16: 0 | F16: 00:00:00 | G16: 0 | H16: 0 | L16: 0 | M16: 0 | O16: 00:00:00 | P16: 00:00:00 | Q16: 0 | R16: 0
A17: 2014-12-07 | D17: 00:00:00 | E17: 0 | F17: 00:00:00 | G17: 0 | H17: 0 | L17: 0 | M17: 0 | O17: 00:00:00 | P17: 00:00:00 | Q17: 0 | R17: 0
A18: 2014-12-08 | D18: 00:00:00 | E18: 0 | F18: 00:00:00 | G18: 0 | H18: 0 | L18: 0 | M18: 0 | O18: 00:00:00 | P18: 00:00:00 | Q18: 0 | R18: 0
A19: 2014-12-09 | D19: 00:00:00 | E19: 0 | F19: 00:00:00 | G19: 0 | H19: 0 | L19: 0 | M19: 0 | O19: 00:00:00 | P19: 00:00:00 | Q19: 0 | R19: 0
A20: 2014-12-10 | D20: 00:00:00 | E20: 0 | F20: 00:00:00 | G20: 0 | H20: 0 | L20: 0 | M20: 0 | O20: 00:00:00 | P20: 00:00:00 | Q20: 0 | R20: 0
A21: 2014-12-11 | D21: 00:00:00 | E21: 0 | F21: 00:00:00 | G21: 0 | H21: 0 | L21: 0 | M21: 0 | O21: 00:00:00 | P21: 00:00:00 | Q21: 0 | R21: 0
A22: 2014-12-12 | D22: 00:00:00 | E22: 0 | F22: 00:00:00 | G22: 0 | H22: 0 | L22: 0 | M22: 0 | O22: 00:00:00 | P22: 00:00:00 | Q22: 0 | R22: 0
A23: 2014-12-13 | D23: 00:00:00 | E23: 0 | F23: 00:00:00 | G23: 0 | H23: 0 | L23: 0 | M23: 0 | O23: 00:00:00 | P23: 00:00:00 | Q23: 0 | R23: 0
A24: 2014-12-14 | D24: 00:00:00 | E24: 0 | F24: 00:00:00 | G24: 0 | H24: 0 | L24: 0 | M24: 0 | O24: 00:00:00 | P24: 00:00:00 | Q24: 0 | R24: 0
A25: 2014-12-15 | D25: 00:00:00 | E25: 0 | F25: 00:00:00 | G25: 0 | H25: 0 | L25: 0 | M25: 0 | O25: 00:00:00 | P25: 00:00:00 | Q25: 0 | R25: 0
A26: 2014-12-16 | D26: 00:00:00 | E26: 0 | F26: 00:00:00 | G26: 0 | H26: 0 | L26: 0 | M26: 0 | O26: 00:00:00 | P26: 00:00:00 | Q26: 0 | R26: 0
A27: 2014-12-17 | D27: 00:00:00 | E27: 0 | F27: 00:00:00 | G27: 0 | H27: 0 | L27: 0 | M27: 0 | O27: 00:00:00 | P27: 00:00:00 | Q27: 0 | R27: 0
A28: 2014-12-18 | D28: 00:00:00 | E28: 0 | F28: 00:00:00 | G28: 0 | H28: 0 | L28: 0 | M28: 0 | O28: 00:00:00 | P28: 00:00:00 | Q28: 0 | R28: 0
A29: 2014-12-19 | D29: 00:00:00 | E29: 0 | F29: 00:00:00 | G29: 0 | H29: 0 | L29: 0 | M29: 0 | O29: 00:00:00 | P29: 00:00:00 | Q29: 0 | R29: 0
A30: 2014-12-20 | D30: 00:00:00 | E30: 0 | F30: 00:00:00 | G30: 0 | H30: 0 | L30: 0 | M30: 0 | O30: 00:00:00 | P30: 00:00:00 | Q30: 0 | R30: 0
A31: 2014-12-21 | D31: 00:00:00 | E31: 0 | F31: 00:00:00 | G31: 0 | H31: 0 | L31: 0 | M31: 0 | O31: 00:00:00 | P31: 00:00:00 | Q31: 0 | R31: 0
A32: 2014-12-22 | D32: 00:00:00 | E32: 0 | F32: 00:00:00 | G32: 0 | H32: 0 | L32: 0 | M32: 0 | O32: 00:00:00 | P32: 00:00:00 | Q32: 0 | R32: 0
A33: 2014-12-23 | D33: 00:00:00 | E33: 0 | F33: 00:00:00 | G33: 0 | H33: 0 | L33: 0 | M33: 0 | O33: 00:00:00 | P33: 00:00:00 | Q33: 0 | R33: 0
A34: 2014-12-24 | D34: 00:00:00 | E34: 0 | F34: 00:00:00 | G34: 0 | H34: 0 | L34: 0 | M34: 0 | O34: 00:00:00 | P34: 00:00:00 | Q34: 0 | R34: 0
A35: 2014-12-25 | D35: 00:00:00 | E35: 0 | F35: 00:00:00 | G35: 0 | H35: 0 | L35: 0 | M35: 0 | O35: 00:00:00 | P35: 00:00:00 | Q35: 0 | R35: 0
A36: 2014-12-26 | D36: 00:00:00 | E36: 0 | F36: 00:00:00 | G36: 0 | H36: 0 | L36: 0 | M36: 0 | O36: 00:00:00 | P36: 00:00:00 | Q36: 0 | R36: 0
A37: 2014-12-27 | D37: 00:00:00 | E37: 0 | F37: 00:00:00 | G37: 0 | H37: 0 | L37: 0 | M37: 0 | O37: 00:00:00 | P37: 00:00:00 | Q37: 0 | R37: 0
A38: 2014-12-28 | D38: 00:00:00 | E38: 0 | F38: 00:00:00 | G38: 0 | H38: 0 | L38: 0 | M38: 0 | O38: 00:00:00 | P38: 00:00:00 | Q38: 0 | R38: 0
A39: 2014-12-29 | D39: 00:00:00 | E39: 0 | F39: 00:00:00 | G39: 0 | H39: 0 | L39: 0 | M39: 0 | O39: 00:00:00 | P39: 00:00:00 | Q39: 0 | R39: 0
A40: 2014-12-30 | B40: 07:00:00 | C40: 17:00:00 | D40: 10:00:00 | E40: 0 | F40: 00:00:00 | G40: 0 | H40: 0 | L40: 0 | M40: 0 | O40: 10:00:00 | P40: 10:00:00 | Q40: 0 | R40: 0
A41: 2014-12-31 | B41: 07:00:00 | C41: 17:00:00 | D41: 10:00:00 | E41: 0 | F41: 00:00:00 | G41: 0 | H41: 0 | L41: 0 | M41: 0 | O41: 10:00:00 | P41: 10:00:00 | Q41: 0 | R41: 0
A42: TOTAUX: | D42: =SUM(D11:D41) -> 0.8333333333 | E42: 0 | F42: 0 | G42: 0 | H42: 0 | I42: 0 | J42: =SUM(J10:J41) -> 0 | K42: =SUM(K10:K41) -> 0 | L42: =SUM(L11:L41) -> 0 | M42: =SUM(M11:M41) -> 0
A45: Total KM parcourue selon le Log Sheets: | C45: 200 | E45: Qté (L) de Carburant Fournis par CRS: | G45: 100 | H45: Prix par Litre de Carburant: | J45: 870 | K45: Cout de Carburant = | M45: =IF(G45=0,0,G45*J45) -> 87000
K46: Montant d'Allocation = | M46: =M42+M45 -> 87000
G48: Allocation des Couts
A49: DSPNs (ayant bénéficié du véhicule) | C49: KM parcourus par DSPN | E49: % utilisation par DSPN | F49: Location | H49: Carburant | J49: Total
A50: 15506209101 | C50: =IF(SUM(C51:D59)>=C45,0,(C45-SUM(C51:D59))) -> 0 | E50: =IF(C$45=0,0,C50/C$45) -> 0 | F50: =E50*M$42 -> 0 | H50: =E50*M$45 -> 0 | J50: =F50+H50 -> 0
A51: 67716200059 | C51: 200 | E51: =IF(C$45=0,0,C51/C$45) -> 1 | F51: =E51*M$42 -> 0 | H51: =E51*M$45 -> 87000 | J51: =F51+H51 -> 87000
E52: 0 | F52: 0 | H52: 0 | J52: =F52+H52 -> 0
E53: 0 | F53: 0 | H53: 0 | J53: 0
E54: 0 | F54: 0 | H54: 0 | J54: 0
E55: 0 | F55: 0 | H55: 0 | J55: 0
E56: 0 | F56: 0 | H56: 0 | J56: 0
E57: 0 | F57: 0 | H57: 0 | J57: 0
E58: 0 | F58: 0 | H58: 0 | J58: 0
E59: 0 | F59: 0 | H59: 0 | J59: =F59+H59 -> 0
A60: TOTAL (pour vérification): | C60: =SUM(C50:D59) -> 200 | E60: =SUM(E50:E59) -> 1 | F60: =SUM(F50:G59) -> 0 | H60: =SUM(H50:I59) -> 87000 | J60: =SUM(J50:K59) -> 87000
A62: ='Rental Vehicle (1)'!A62:E62 -> 0
A63: Repport prepare par (signature et date) | G63: Rapport verifie et approve (signature et date) | K63: Payment approve par (signature et date)

Sheet Rental Vehicle (3)
A1: CRS VEHICULE DE LOCATION -- FICHE D'UTILSATION ET ALLOCATION DES COUTS
A2: Bureau: | B2: =Instructions!G11 -> BOSSANGOA | G2: Véhicule ID, Marque et Modèle: | J2: =IF(Instructions!D23=0,0,Instructions!D23&", "&Instructions!G23) -> DA153MB, Location Mobile 6
A3: Période: | B3: =Instructions!E15 -> DECEMBRE 2014 | G3: Propriétaire du Véhicule:
A5: Code LC: | B5: =Instructions!G13 -> FCFA | D5: Taux Journalier: | F5: =B5 -> FCFA | G5: 70000 | H5: Supplément Horaire: | K5: =B5 -> FCFA
A7: MAX Heures de Service: | H7: 23:59:00
B9: CALCULE - PAIEMENT POUR LOCATION | I9: DEDUCTIONS | M9: MONTANT DU
A10: Date | B10: Heure Début | C10: Heure Fin | D10: Heures de Service | E10: ="Montant ("&B5&")" -> Montant (FCFA) | F10: Heures Supp | G10: Paiement - Heures Supp | H10: ="Paiement Dû ("&B5&")" -> Paiement Dû (FCFA) | I10: Avances Carburant | J10: Avances Salaire | K10: Autres Avances | L10: Déductions Totales | M10: ="Montant Journalier ("&B5&")" -> Montant Journalier (FCFA) | O10: Total | P10: Reg | Q10: OT1 | R10: OT2
A11: ='Rental Vehicle (1)'!A11 -> 2014-12-01 | D11: =IF(P11=0,0,P11) -> 00:00:00 | E11: =IF(D11=0,0,G$5) -> 0 | F11: =Q11 -> 00:00:00 | G11: =IF(F11=0,0,R11*L$5) -> 0 | H11: =E11+G11 -> 0 | L11: =-SUM(I11:K11) -> 0 | M11: =IF(H11=0,0,H11+L11) -> 0 | O11: =IF(C11=0,0,IF(C11>B11,C11-B11,C11+1-B11)) -> 00:00:00 | P11: =IF(O11>H$7,H$7,O11) -> 00:00:00 | Q11: =IF(O11>P11,O11-P11,0) -> 0 | R11: =(O11-P11)*24 -> 0
A12: =IF(A11=0,0,A11+1) -> 2014-12-02 | D12: =IF(P12=0,0,P12) -> 00:00:00 | E12: =IF(D12=0,0,G$5) -> 0 | F12: =Q12 -> 00:00:00 | G12: 0 | H12: 0 | L12: =-SUM(I12:K12) -> 0 | M12: =IF(H12=0,0,H12+L12) -> 0 | O12: =IF(C12=0,0,IF(C12>B12,C12-B12,C12+1-B12)) -> 00:00:00 | P12: 00:00:00 | Q12: =IF(O12>P12,O12-P12,0) -> 0 | R12: =(O12-P12)*24 -> 0
A13: =IF(A12=0,0,A12+1) -> 2014-12-03 | D13: 00:00:00 | E13: 0 | F13: 00:00:00 | G13: 0 | H13: 0 | L13: 0 | M13: 0 | O13: 00:00:00 | P13: 00:00:00 | Q13: 0 | R13: 0
A14: 2014-12-04 | B14: 07:00:00 | C14: 17:00:00 | D14: 10:00:00 | E14: 70000 | F14: 00:00:00 | G14: 0 | H14: 70000 | L14: 0 | M14: 70000 | O14: 10:00:00 | P14: 10:00:00 | Q14: 0 | R14: 0
A15: 2014-12-05 | B15: 07:00:00 | C15: 17:00:00 | D15: 10:00:00 | E15: 70000 | F15: 00:00:00 | G15: 0 | H15: 70000 | L15: 0 | M15: 70000 | O15: 10:00:00 | P15: 10:00:00 | Q15: 0 | R15: 0
A16: 2014-12-06 | B16: 07:00:00 | C16: 17:00:00 | D16: 10:00:00 | E16: 70000 | F16: 00:00:00 | G16: 0 | H16: 70000 | L16: 0 | M16: 70000 | O16: 10:00:00 | P16: 10:00:00 | Q16: 0 | R16: 0
A17: 2014-12-07 | B17: 07:00:00 | C17: 17:00:00 | D17: 10:00:00 | E17: 70000 | F17: 00:00:00 | G17: 0 | H17: 70000 | L17: 0 | M17: 70000 | O17: 10:00:00 | P17: 10:00:00 | Q17: 0 | R17: 0
A18: 2014-12-08 | B18: 07:00:00 | C18: 17:00:00 | D18: 10:00:00 | E18: 70000 | F18: 00:00:00 | G18: 0 | H18: 70000 | L18: 0 | M18: 70000 | O18: 10:00:00 | P18: 10:00:00 | Q18: 0 | R18: 0
A19: 2014-12-09 | B19: 07:00:00 | C19: 17:00:00 | D19: 10:00:00 | E19: 70000 | F19: 00:00:00 | G19: 0 | H19: 70000 | L19: 0 | M19: 70000 | O19: 10:00:00 | P19: 10:00:00 | Q19: 0 | R19: 0
A20: 2014-12-10 | B20: 07:00:00 | C20: 17:00:00 | D20: 10:00:00 | E20: 70000 | F20: 00:00:00 | G20: 0 | H20: 70000 | L20: 0 | M20: 70000 | O20: 10:00:00 | P20: 10:00:00 | Q20: 0 | R20: 0
A21: 2014-12-11 | B21: 07:00:00 | C21: 17:00:00 | D21: 10:00:00 | E21: 70000 | F21: 00:00:00 | G21: 0 | H21: 70000 | L21: 0 | M21: 70000 | O21: 10:00:00 | P21: 10:00:00 | Q21: 0 | R21: 0
A22: 2014-12-12 | B22: 07:00:00 | C22: 17:00:00 | D22: 10:00:00 | E22: 70000 | F22: 00:00:00 | G22: 0 | H22: 70000 | L22: 0 | M22: 70000 | O22: 10:00:00 | P22: 10:00:00 | Q22: 0 | R22: 0
A23: 2014-12-13 | B23: 07:00:00 | C23: 17:00:00 | D23: 10:00:00 | E23: 70000 | F23: 00:00:00 | G23: 0 | H23: 70000 | L23: 0 | M23: 70000 | O23: 10:00:00 | P23: 10:00:00 | Q23: 0 | R23: 0
A24: 2014-12-14 | B24: 07:00:00 | C24: 17:00:00 | D24: 10:00:00 | E24: 70000 | F24: 00:00:00 | G24: 0 | H24: 70000 | L24: 0 | M24: 70000 | O24: 10:00:00 | P24: 10:00:00 | Q24: 0 | R24: 0
A25: 2014-12-15 | B25: 07:00:00 | C25: 17:00:00 | D25: 10:00:00 | E25: 70000 | F25: 00:00:00 | G25: 0 | H25: 70000 | L25: 0 | M25: 70000 | O25: 10:00:00 | P25: 10:00:00 | Q25: 0 | R25: 0
A26: 2014-12-16 | B26: 07:00:00 | C26: 17:00:00 | D26: 10:00:00 | E26: 70000 | F26: 00:00:00 | G26: 0 | H26: 70000 | L26: 0 | M26: 70000 | O26: 10:00:00 | P26: 10:00:00 | Q26: 0 | R26: 0
A27: 2014-12-17 | D27: 00:00:00 | E27: 0 | F27: 00:00:00 | G27: 0 | H27: 0 | L27: 0 | M27: 0 | O27: 00:00:00 | P27: 00:00:00 | Q27: 0 | R27: 0
A28: 2014-12-18 | D28: 00:00:00 | E28: 0 | F28: 00:00:00 | G28: 0 | H28: 0 | L28: 0 | M28: 0 | O28: 00:00:00 | P28: 00:00:00 | Q28: 0 | R28: 0
A29: 2014-12-19 | D29: 00:00:00 | E29: 0 | F29: 00:00:00 | G29: 0 | H29: 0 | L29: 0 | M29: 0 | O29: 00:00:00 | P29: 00:00:00 | Q29: 0 | R29: 0
A30: 2014-12-20 | D30: 00:00:00 | E30: 0 | F30: 00:00:00 | G30: 0 | H30: 0 | L30: 0 | M30: 0 | O30: 00:00:00 | P30: 00:00:00 | Q30: 0 | R30: 0
A31: 2014-12-21 | D31: 00:00:00 | E31: 0 | F31: 00:00:00 | G31: 0 | H31: 0 | L31: 0 | M31: 0 | O31: 00:00:00 | P31: 00:00:00 | Q31: 0 | R31: 0
A32: 2014-12-22 | D32: 00:00:00 | E32: 0 | F32: 00:00:00 | G32: 0 | H32: 0 | L32: 0 | M32: 0 | O32: 00:00:00 | P32: 00:00:00 | Q32: 0 | R32: 0
A33: 2014-12-23 | D33: 00:00:00 | E33: 0 | F33: 00:00:00 | G33: 0 | H33: 0 | L33: 0 | M33: 0 | O33: 00:00:00 | P33: 00:00:00 | Q33: 0 | R33: 0
A34: 2014-12-24 | D34: 00:00:00 | E34: 0 | F34: 00:00:00 | G34: 0 | H34: 0 | L34: 0 | M34: 0 | O34: 00:00:00 | P34: 00:00:00 | Q34: 0 | R34: 0
A35: 2014-12-25 | D35: 00:00:00 | E35: 0 | F35: 00:00:00 | G35: 0 | H35: 0 | L35: 0 | M35: 0 | O35: 00:00:00 | P35: 00:00:00 | Q35: 0 | R35: 0
A36: 2014-12-26 | D36: 00:00:00 | E36: 0 | F36: 00:00:00 | G36: 0 | H36: 0 | L36: 0 | M36: 0 | O36: 00:00:00 | P36: 00:00:00 | Q36: 0 | R36: 0
A37: 2014-12-27 | D37: 00:00:00 | E37: 0 | F37: 00:00:00 | G37: 0 | H37: 0 | L37: 0 | M37: 0 | O37: 00:00:00 | P37: 00:00:00 | Q37: 0 | R37: 0
A38: 2014-12-28 | D38: 00:00:00 | E38: 0 | F38: 00:00:00 | G38: 0 | H38: 0 | L38: 0 | M38: 0 | O38: 00:00:00 | P38: 00:00:00 | Q38: 0 | R38: 0
A39: 2014-12-29 | D39: 00:00:00 | E39: 0 | F39: 00:00:00 | G39: 0 | H39: 0 | L39: 0 | M39: 0 | O39: 00:00:00 | P39: 00:00:00 | Q39: 0 | R39: 0
A40: 2014-12-30 | D40: 00:00:00 | E40: 0 | F40: 00:00:00 | G40: 0 | H40: 0 | L40: 0 | M40: 0 | O40: 00:00:00 | P40: 00:00:00 | Q40: 0 | R40: 0
A41: 2014-12-31 | D41: 00:00:00 | E41: 0 | F41: 00:00:00 | G41: 0 | H41: 0 | L41: 0 | M41: 0 | O41: 00:00:00 | P41: 00:00:00 | Q41: 0 | R41: 0
A42: TOTAUX: | D42: =SUM(D11:D41) -> 5.416666667 | E42: 910000 | F42: 0 | G42: 0 | H42: 910000 | I42: 0 | J42: =SUM(J10:J41) -> 0 | K42: =SUM(K10:K41) -> 0 | L42: =SUM(L11:L41) -> 0 | M42: =SUM(M11:M41) -> 910000
A45: Total KM parcourue selon le Log Sheets: | C45: 1400 | E45: Qté (L) de Carburant Fournis par CRS: | G45: 186 | H45: Prix par Litre de Carburant: | J45: 870 | K45: Cout de Carburant = | M45: =IF(G45=0,0,G45*J45) -> 161820
K46: Montant d'Allocation = | M46: =M42+M45 -> 1071820
G48: Allocation des Couts
A49: DSPNs (ayant bénéficié du véhicule) | C49: KM parcourus par DSPN | E49: % utilisation par DSPN | F49: Location | H49: Carburant | J49: Total
A50: 15506209101 | C50: =IF(SUM(C51:D59)>=C45,0,(C45-SUM(C51:D59))) -> 0 | E50: =IF(C$45=0,0,C50/C$45) -> 0 | F50: =E50*M$42 -> 0 | H50: =E50*M$45 -> 0 | J50: =F50+H50 -> 0
A51: 67716200059 | C51: =0.5*C45 -> 700 | E51: =IF(C$45=0,0,C51/C$45) -> 0.5 | F51: =E51*M$42 -> 455000 | H51: =E51*M$45 -> 80910 | J51: =F51+H51 -> 535910
A52: 35006200062 | C52: =(1/6)*C45 -> 233.3333333 | E52: 0.1666666667 | F52: 151666.6667 | H52: 26970 | J52: =F52+H52 -> 178636.6667
A53: 82196200055 | C53: =(1/6)*C45 -> 233.3333333 | E53: 0.1666666667 | F53: 151666.6667 | H53: 26970 | J53: 178636.6667
A54: 15506200051 | C54: =(1/6)*C45 -> 233.3333333 | E54: 0.1666666667 | F54: 151666.6667 | H54: 26970 | J54: 178636.6667
E55: 0 | F55: 0 | H55: 0 | J55: 0
E56: 0 | F56: 0 | H56: 0 | J56: 0
E57: 0 | F57: 0 | H57: 0 | J57: 0
E58: 0 | F58: 0 | H58: 0 | J58: 0
E59: 0 | F59: 0 | H59: 0 | J59: =F59+H59 -> 0
A60: TOTAL (pour vérification): | C60: =SUM(C50:D59) -> 1400 | E60: =SUM(E50:E59) -> 1 | F60: =SUM(F50:G59) -> 910000 | H60: =SUM(H50:I59) -> 161820 | J60: =SUM(J50:K59) -> 1071820
A62: ='Rental Vehicle (1)'!A62:E62 -> 0
A63: Repport prepare par (signature et date) | G63: Rapport verifie et approve (signature et date) | K63: Payment approve par (signature et date)

Sheet Rental Vehicle (4)
A1: CRS VEHICULE DE LOCATION -- FICHE D'UTILSATION ET ALLOCATION DES COUTS
A2: Bureau: | B2: =Instructions!G11 -> BOSSANGOA | G2: Véhicule ID, Marque et Modèle: | J2: =IF(Instructions!D25=0,0,Instructions!D25&", "&Instructions!G25) -> DE502BG, Location Mobile 8
A3: Période: | B3: =Instructions!E15 -> DECEMBRE 2014 | G3: Propriétaire du Véhicule:
A5: Code LC: | B5: =Instructions!G13 -> FCFA | D5: Taux Journalier: | F5: =B5 -> FCFA | G5: 65000 | H5: Supplément Horaire: | K5: =B5 -> FCFA
A7: MAX Heures de Service: | H7: 23:59:00
B9: CALCULE - PAIEMENT POUR LOCATION | I9: DEDUCTIONS | M9: MONTANT DU
A10: Date | B10: Heure Début | C10: Heure Fin | D10: Heures de Service | E10: ="Montant ("&B5&")" -> Montant (FCFA) | F10: Heures Supp | G10: Paiement - Heures Supp | H10: ="Paiement Dû ("&B5&")" -> Paiement Dû (FCFA) | I10: Avances Carburant | J10: Avances Salaire | K10: Autres Avances | L10: Déductions Totales | M10: ="Montant Journalier ("&B5&")" -> Montant Journalier (FCFA) | O10: Total | P10: Reg | Q10: OT1 | R10: OT2
A11: ='Rental Vehicle (1)'!A11 -> 2014-12-01 | D11: =IF(P11=0,0,P11) -> 00:00:00 | E11: =IF(D11=0,0,G$5) -> 0 | F11: =Q11 -> 00:00:00 | G11: =IF(F11=0,0,R11*L$5) -> 0 | H11: =E11+G11 -> 0 | L11: =-SUM(I11:K11) -> 0 | M11: =IF(H11=0,0,H11+L11) -> 0 | O11: =IF(C11=0,0,IF(C11>B11,C11-B11,C11+1-B11)) -> 00:00:00 | P11: =IF(O11>H$7,H$7,O11) -> 00:00:00 | Q11: =IF(O11>P11,O11-P11,0) -> 0 | R11: =(O11-P11)*24 -> 0
A12: =IF(A11=0,0,A11+1) -> 2014-12-02 | D12: =IF(P12=0,0,P12) -> 00:00:00 | E12: =IF(D12=0,0,G$5) -> 0 | F12: =Q12 -> 00:00:00 | G12: 0 | H12: 0 | L12: =-SUM(I12:K12) -> 0 | M12: =IF(H12=0,0,H12+L12) -> 0 | O12: =IF(C12=0,0,IF(C12>B12,C12-B12,C12+1-B12)) -> 00:00:00 | P12: 00:00:00 | Q12: =IF(O12>P12,O12-P12,0) -> 0 | R12: =(O12-P12)*24 -> 0
A13: =IF(A12=0,0,A12+1) -> 2014-12-03 | D13: 00:00:00 | E13: 0 | F13: 00:00:00 | G13: 0 | H13: 0 | L13: 0 | M13: 0 | O13: 00:00:00 | P13: 00:00:00 | Q13: 0 | R13: 0
A14: 2014-12-04 | B14: 07:00:00 | C14: 17:00:00 | D14: 10:00:00 | E14: 65000 | F14: 00:00:00 | G14: 0 | H14: 65000 | L14: 0 | M14: 65000 | O14: 10:00:00 | P14: 10:00:00 | Q14: 0 | R14: 0
A15: 2014-12-05 | B15: 07:00:00 | C15: 17:00:00 | D15: 10:00:00 | E15: 65000 | F15: 00:00:00 | G15: 0 | H15: 65000 | L15: 0 | M15: 65000 | O15: 10:00:00 | P15: 10:00:00 | Q15: 0 | R15: 0
A16: 2014-12-06 | B16: 07:00:00 | C16: 17:00:00 | D16: 10:00:00 | E16: 65000 | F16: 00:00:00 | G16: 0 | H16: 65000 | L16: 0 | M16: 65000 | O16: 10:00:00 | P16: 10:00:00 | Q16: 0 | R16: 0
A17: 2014-12-07 | B17: 07:00:00 | C17: 17:00:00 | D17: 10:00:00 | E17: 65000 | F17: 00:00:00 | G17: 0 | H17: 65000 | L17: 0 | M17: 65000 | O17: 10:00:00 | P17: 10:00:00 | Q17: 0 | R17: 0
A18: 2014-12-08 | B18: 07:00:00 | C18: 17:00:00 | D18: 10:00:00 | E18: 65000 | F18: 00:00:00 | G18: 0 | H18: 65000 | L18: 0 | M18: 65000 | O18: 10:00:00 | P18: 10:00:00 | Q18: 0 | R18: 0
A19: 2014-12-09 | B19: 07:00:00 | C19: 17:00:00 | D19: 10:00:00 | E19: 65000 | F19: 00:00:00 | G19: 0 | H19: 65000 | L19: 0 | M19: 65000 | O19: 10:00:00 | P19: 10:00:00 | Q19: 0 | R19: 0
A20: 2014-12-10 | B20: 07:00:00 | C20: 17:00:00 | D20: 10:00:00 | E20: 65000 | F20: 00:00:00 | G20: 0 | H20: 65000 | L20: 0 | M20: 65000 | O20: 10:00:00 | P20: 10:00:00 | Q20: 0 | R20: 0
A21: 2014-12-11 | B21: 07:00:00 | C21: 17:00:00 | D21: 10:00:00 | E21: 65000 | F21: 00:00:00 | G21: 0 | H21: 65000 | L21: 0 | M21: 65000 | O21: 10:00:00 | P21: 10:00:00 | Q21: 0 | R21: 0
A22: 2014-12-12 | B22: 07:00:00 | C22: 17:00:00 | D22: 10:00:00 | E22: 65000 | F22: 00:00:00 | G22: 0 | H22: 65000 | L22: 0 | M22: 65000 | O22: 10:00:00 | P22: 10:00:00 | Q22: 0 | R22: 0
A23: 2014-12-13 | B23: 07:00:00 | C23: 17:00:00 | D23: 10:00:00 | E23: 65000 | F23: 00:00:00 | G23: 0 | H23: 65000 | L23: 0 | M23: 65000 | O23: 10:00:00 | P23: 10:00:00 | Q23: 0 | R23: 0
A24: 2014-12-14 | B24: 07:00:00 | C24: 17:00:00 | D24: 10:00:00 | E24: 65000 | F24: 00:00:00 | G24: 0 | H24: 65000 | L24: 0 | M24: 65000 | O24: 10:00:00 | P24: 10:00:00 | Q24: 0 | R24: 0
A25: 2014-12-15 | B25: 07:00:00 | C25: 17:00:00 | D25: 10:00:00 | E25: 65000 | F25: 00:00:00 | G25: 0 | H25: 65000 | L25: 0 | M25: 65000 | O25: 10:00:00 | P25: 10:00:00 | Q25: 0 | R25: 0
A26: 2014-12-16 | B26: 07:00:00 | C26: 17:00:00 | D26: 10:00:00 | E26: 65000 | F26: 00:00:00 | G26: 0 | H26: 65000 | L26: 0 | M26: 65000 | O26: 10:00:00 | P26: 10:00:00 | Q26: 0 | R26: 0
A27: 2014-12-17 | B27: 07:00:00 | C27: 17:00:00 | D27: 10:00:00 | E27: 65000 | F27: 00:00:00 | G27: 0 | H27: 65000 | L27: 0 | M27: 65000 | O27: 10:00:00 | P27: 10:00:00 | Q27: 0 | R27: 0
A28: 2014-12-18 | B28: 07:00:00 | C28: 17:00:00 | D28: 10:00:00 | E28: 65000 | F28: 00:00:00 | G28: 0 | H28: 65000 | L28: 0 | M28: 65000 | O28: 10:00:00 | P28: 10:00:00 | Q28: 0 | R28: 0
A29: 2014-12-19 | B29: 07:00:00 | C29: 17:00:00 | D29: 10:00:00 | E29: 65000 | F29: 00:00:00 | G29: 0 | H29: 65000 | L29: 0 | M29: 65000 | O29: 10:00:00 | P29: 10:00:00 | Q29: 0 | R29: 0
A30: 2014-12-20 | B30: 07:00:00 | C30: 17:00:00 | D30: 10:00:00 | E30: 65000 | F30: 00:00:00 | G30: 0 | H30: 65000 | L30: 0 | M30: 65000 | O30: 10:00:00 | P30: 10:00:00 | Q30: 0 | R30: 0
A31: 2014-12-21 | B31: 07:00:00 | C31: 17:00:00 | D31: 10:00:00 | E31: 65000 | F31: 00:00:00 | G31: 0 | H31: 65000 | L31: 0 | M31: 65000 | O31: 10:00:00 | P31: 10:00:00 | Q31: 0 | R31: 0
A32: 2014-12-22 | B32: 07:00:00 | C32: 17:00:00 | D32: 10:00:00 | E32: 65000 | F32: 00:00:00 | G32: 0 | H32: 65000 | L32: 0 | M32: 65000 | O32: 10:00:00 | P32: 10:00:00 | Q32: 0 | R32: 0
A33: 2014-12-23 | B33: 07:00:00 | C33: 17:00:00 | D33: 10:00:00 | E33: 65000 | F33: 00:00:00 | G33: 0 | H33: 65000 | L33: 0 | M33: 65000 | O33: 10:00:00 | P33: 10:00:00 | Q33: 0 | R33: 0
A34: 2014-12-24 | D34: 00:00:00 | E34: 0 | F34: 00:00:00 | G34: 0 | H34: 0 | L34: 0 | M34: 0 | O34: 00:00:00 | P34: 00:00:00 | Q34: 0 | R34: 0
A35: 2014-12-25 | D35: 00:00:00 | E35: 0 | F35: 00:00:00 | G35: 0 | H35: 0 | L35: 0 | M35: 0 | O35: 00:00:00 | P35: 00:00:00 | Q35: 0 | R35: 0
A36: 2014-12-26 | D36: 00:00:00 | E36: 0 | F36: 00:00:00 | G36: 0 | H36: 0 | L36: 0 | M36: 0 | O36: 00:00:00 | P36: 00:00:00 | Q36: 0 | R36: 0
A37: 2014-12-27 | D37: 00:00:00 | E37: 0 | F37: 00:00:00 | G37: 0 | H37: 0 | L37: 0 | M37: 0 | O37: 00:00:00 | P37: 00:00:00 | Q37: 0 | R37: 0
A38: 2014-12-28 | D38: 00:00:00 | E38: 0 | F38: 00:00:00 | G38: 0 | H38: 0 | L38: 0 | M38: 0 | O38: 00:00:00 | P38: 00:00:00 | Q38: 0 | R38: 0
A39: 2014-12-29 | D39: 00:00:00 | E39: 0 | F39: 00:00:00 | G39: 0 | H39: 0 | L39: 0 | M39: 0 | O39: 00:00:00 | P39: 00:00:00 | Q39: 0 | R39: 0
A40: 2014-12-30 | D40: 00:00:00 | E40: 0 | F40: 00:00:00 | G40: 0 | H40: 0 | L40: 0 | M40: 0 | O40: 00:00:00 | P40: 00:00:00 | Q40: 0 | R40: 0
A41: 2014-12-31 | D41: 00:00:00 | E41: 0 | F41: 00:00:00 | G41: 0 | H41: 0 | L41: 0 | M41: 0 | O41: 00:00:00 | P41: 00:00:00 | Q41: 0 | R41: 0
A42: TOTAUX: | D42: =SUM(D11:D41) -> 8.333333333 | E42: 1300000 | F42: 0 | G42: 0 | H42: 1300000 | I42: 0 | J42: =SUM(J10:J41) -> 0 | K42: =SUM(K10:K41) -> 0 | L42: =SUM(L11:L41) -> 0 | M42: =SUM(M11:M41) -> 1300000
A45: Total KM parcourue selon le Log Sheets: | C45: 1400 | E45: Qté (L) de Carburant Fournis par CRS: | G45: 272 | H45: Prix par Litre de Carburant: | J45: 870 | K45: Cout de Carburant = | M45: =IF(G45=0,0,G45*J45) -> 236640
K46: Montant d'Allocation = | M46: =M42+M45 -> 1536640
G48: Allocation des Couts
A49: DSPNs (ayant bénéficié du véhicule) | C49: KM parcourus par DSPN | E49: % utilisation par DSPN | F49: Location | H49: Carburant | J49: Total
A50: 15506209101 | C50: =IF(SUM(C51:D59)>=C45,0,(C45-SUM(C51:D59))) -> 0 | E50: =IF(C$45=0,0,C50/C$45) -> 0 | F50: =E50*M$42 -> 0 | H50: =E50*M$45 -> 0 | J50: =F50+H50 -> 0
A51: 67716200059 | C51: 1050 | E51: =IF(C$45=0,0,C51/C$45) -> 0.75 | F51: =E51*M$42 -> 975000 | H51: =E51*M$45 -> 177480 | J51: =F51+H51 -> 1152480
A52: 82196200055 | C52: 175 | E52: 0.125 | F52: 162500 | H52: 29580 | J52: =F52+H52 -> 192080
A53: 35006200062 | C53: 175 | E53: 0.125 | F53: 162500 | H53: 29580 | J53: 192080
E54: 0 | F54: 0 | H54: 0 | J54: 0
E55: 0 | F55: 0 | H55: 0 | J55: 0
E56: 0 | F56: 0 | H56: 0 | J56: 0
E57: 0 | F57: 0 | H57: 0 | J57: 0
E58: 0 | F58: 0 | H58: 0 | J58: 0
E59: 0 | F59: 0 | H59: 0 | J59: =F59+H59 -> 0
A60: TOTAL (pour vérification): | C60: =SUM(C50:D59) -> 1400 | E60: =SUM(E50:E59) -> 1 | F60: =SUM(F50:G59) -> 1300000 | H60: =SUM(H50:I59) -> 236640 | J60: =SUM(J50:K59) -> 1536640
A62: ='Rental Vehicle (1)'!A62:E62 -> 0
A63: Repport prepare par (signature et date) | G63: Rapport verifie et approve (signature et date) | K63: Payment approve par (signature et date)

Sheet Rental Vehicle (5)
A1: CRS VEHICULE DE LOCATION -- FICHE D'UTILSATION ET ALLOCATION DES COUTS
A2: Bureau: | B2: =Instructions!G11 -> BOSSANGOA | G2: Véhicule ID, Marque et Modèle: | J2: =IF(Instructions!D27=0,0,Instructions!D27&", "&Instructions!G27) -> 0
A3: Période: | B3: =Instructions!E15 -> DECEMBRE 2014 | G3: Propriétaire du Véhicule:
A5: Code LC: | B5: =Instructions!G13 -> FCFA | D5: Taux Journalier: | F5: =B5 -> FCFA | H5: Supplément Horaire: | K5: =B5 -> FCFA
A7: MAX Heures de Service: | H7: 23:59:00
B9: CALCULE - PAIEMENT POUR LOCATION | I9: DEDUCTIONS | M9: MONTANT DU
A10: Date | B10: Heure Début | C10: Heure Fin | D10: Heures de Service | E10: ="Montant ("&B5&")" -> Montant (FCFA) | F10: Heures Supp | G10: Paiement - Heures Supp | H10: ="Paiement Dû ("&B5&")" -> Paiement Dû (FCFA) | I10: Avances Carburant | J10: Avances Salaire | K10: Autres Avances | L10: Déductions Totales | M10: ="Montant Journalier ("&B5&")" -> Montant Journalier (FCFA) | O10: Total | P10: Reg | Q10: OT1 | R10: OT2
A11: ='Rental Vehicle (1)'!A11 -> 2014-12-01 | D11: =IF(P11=0,0,P11) -> 00:00:00 | E11: =IF(D11=0,0,G$5) -> 0 | F11: =Q11 -> 00:00:00 | G11: =IF(F11=0,0,R11*L$5) -> 0 | H11: =E11+G11 -> 0 | L11: =-SUM(I11:K11) -> 0 | M11: =IF(H11=0,0,H11+L11) -> 0 | O11: =IF(C11=0,0,IF(C11>B11,C11-B11,C11+1-B11)) -> 00:00:00 | P11: =IF(O11>H$7,H$7,O11) -> 00:00:00 | Q11: =IF(O11>P11,O11-P11,0) -> 0 | R11: =(O11-P11)*24 -> 0
A12: =IF(A11=0,0,A11+1) -> 2014-12-02 | D12: =IF(P12=0,0,P12) -> 00:00:00 | E12: =IF(D12=0,0,G$5) -> 0 | F12: =Q12 -> 00:00:00 | G12: 0 | H12: 0 | L12: =-SUM(I12:K12) -> 0 | M12: =IF(H12=0,0,H12+L12) -> 0 | O12: =IF(C12=0,0,IF(C12>B12,C12-B12,C12+1-B12)) -> 00:00:00 | P12: 00:00:00 | Q12: =IF(O12>P12,O12-P12,0) -> 0 | R12: =(O12-P12)*24 -> 0
A13: =IF(A12=0,0,A12+1) -> 2014-12-03 | D13: 00:00:00 | E13: 0 | F13: 00:00:00 | G13: 0 | H13: 0 | L13: 0 | M13: 0 | O13: 00:00:00 | P13: 00:00:00 | Q13: 0 | R13: 0
A14: 2014-12-04 | D14: 00:00:00 | E14: 0 | F14: 00:00:00 | G14: 0 | H14: 0 | L14: 0 | M14: 0 | O14: 00:00:00 | P14: 00:00:00 | Q14: 0 | R14: 0
A15: 2014-12-05 | D15: 00:00:00 | E15: 0 | F15: 00:00:00 | G15: 0 | H15: 0 | L15: 0 | M15: 0 | O15: 00:00:00 | P15: 00:00:00 | Q15: 0 | R15: 0
A16: 2014-12-06 | D16: 00:00:00 | E16: 0 | F16: 00:00:00 | G16: 0 | H16: 0 | L16: 0 | M16: 0 | O16: 00:00:00 | P16: 00:00:00 | Q16: 0 | R16: 0
A17: 2014-12-07 | D17: 00:00:00 | E17: 0 | F17: 00:00:00 | G17: 0 | H17: 0 | L17: 0 | M17: 0 | O17: 00:00:00 | P17: 00:00:00 | Q17: 0 | R17: 0
A18: 2014-12-08 | D18: 00:00:00 | E18: 0 | F18: 00:00:00 | G18: 0 | H18: 0 | L18: 0 | M18: 0 | O18: 00:00:00 | P18: 00:00:00 | Q18: 0 | R18: 0
A19: 2014-12-09 | D19: 00:00:00 | E19: 0 | F19: 00:00:00 | G19: 0 | H19: 0 | L19: 0 | M19: 0 | O19: 00:00:00 | P19: 00:00:00 | Q19: 0 | R19: 0
A20: 2014-12-10 | D20: 00:00:00 | E20: 0 | F20: 00:00:00 | G20: 0 | H20: 0 | L20: 0 | M20: 0 | O20: 00:00:00 | P20: 00:00:00 | Q20: 0 | R20: 0
A21: 2014-12-11 | D21: 00:00:00 | E21: 0 | F21: 00:00:00 | G21: 0 | H21: 0 | L21: 0 | M21: 0 | O21: 00:00:00 | P21: 00:00:00 | Q21: 0 | R21: 0
A22: 2014-12-12 | D22: 00:00:00 | E22: 0 | F22: 00:00:00 | G22: 0 | H22: 0 | L22: 0 | M22: 0 | O22: 00:00:00 | P22: 00:00:00 | Q22: 0 | R22: 0
A23: 2014-12-13 | D23: 00:00:00 | E23: 0 | F23: 00:00:00 | G23: 0 | H23: 0 | L23: 0 | M23: 0 | O23: 00:00:00 | P23: 00:00:00 | Q23: 0 | R23: 0
A24: 2014-12-14 | D24: 00:00:00 | E24: 0 | F24: 00:00:00 | G24: 0 | H24: 0 | L24: 0 | M24: 0 | O24: 00:00:00 | P24: 00:00:00 | Q24: 0 | R24: 0
A25: 2014-12-15 | D25: 00:00:00 | E25: 0 | F25: 00:00:00 | G25: 0 | H25: 0 | L25: 0 | M25: 0 | O25: 00:00:00 | P25: 00:00:00 | Q25: 0 | R25: 0
A26: 2014-12-16 | D26: 00:00:00 | E26: 0 | F26: 00:00:00 | G26: 0 | H26: 0 | L26: 0 | M26: 0 | O26: 00:00:00 | P26: 00:00:00 | Q26: 0 | R26: 0
A27: 2014-12-17 | D27: 00:00:00 | E27: 0 | F27: 00:00:00 | G27: 0 | H27: 0 | L27: 0 | M27: 0 | O27: 00:00:00 | P27: 00:00:00 | Q27: 0 | R27: 0
A28: 2014-12-18 | D28: 00:00:00 | E28: 0 | F28: 00:00:00 | G28: 0 | H28: 0 | L28: 0 | M28: 0 | O28: 00:00:00 | P28: 00:00:00 | Q28: 0 | R28: 0
A29: 2014-12-19 | D29: 00:00:00 | E29: 0 | F29: 00:00:00 | G29: 0 | H29: 0 | L29: 0 | M29: 0 | O29: 00:00:00 | P29: 00:00:00 | Q29: 0 | R29: 0
A30: 2014-12-20 | D30: 00:00:00 | E30: 0 | F30: 00:00:00 | G30: 0 | H30: 0 | L30: 0 | M30: 0 | O30: 00:00:00 | P30: 00:00:00 | Q30: 0 | R30: 0
A31: 2014-12-21 | D31: 00:00:00 | E31: 0 | F31: 00:00:00 | G31: 0 | H31: 0 | L31: 0 | M31: 0 | O31: 00:00:00 | P31: 00:00:00 | Q31: 0 | R31: 0
A32: 2014-12-22 | D32: 00:00:00 | E32: 0 | F32: 00:00:00 | G32: 0 | H32: 0 | L32: 0 | M32: 0 | O32: 00:00:00 | P32: 00:00:00 | Q32: 0 | R32: 0
A33: 2014-12-23 | D33: 00:00:00 | E33: 0 | F33: 00:00:00 | G33: 0 | H33: 0 | L33: 0 | M33: 0 | O33: 00:00:00 | P33: 00:00:00 | Q33: 0 | R33: 0
A34: 2014-12-24 | D34: 00:00:00 | E34: 0 | F34: 00:00:00 | G34: 0 | H34: 0 | L34: 0 | M34: 0 | O34: 00:00:00 | P34: 00:00:00 | Q34: 0 | R34: 0
A35: 2014-12-25 | D35: 00:00:00 | E35: 0 | F35: 00:00:00 | G35: 0 | H35: 0 | L35: 0 | M35: 0 | O35: 00:00:00 | P35: 00:00:00 | Q35: 0 | R35: 0
A36: 2014-12-26 | D36: 00:00:00 | E36: 0 | F36: 00:00:00 | G36: 0 | H36: 0 | L36: 0 | M36: 0 | O36: 00:00:00 | P36: 00:00:00 | Q36: 0 | R36: 0
A37: 2014-12-27 | D37: 00:00:00 | E37: 0 | F37: 00:00:00 | G37: 0 | H37: 0 | L37: 0 | M37: 0 | O37: 00:00:00 | P37: 00:00:00 | Q37: 0 | R37: 0
A38: 2014-12-28 | D38: 00:00:00 | E38: 0 | F38: 00:00:00 | G38: 0 | H38: 0 | L38: 0 | M38: 0 | O38: 00:00:00 | P38: 00:00:00 | Q38: 0 | R38: 0
A39: 2014-12-29 | D39: 00:00:00 | E39: 0 | F39: 00:00:00 | G39: 0 | H39: 0 | L39: 0 | M39: 0 | O39: 00:00:00 | P39: 00:00:00 | Q39: 0 | R39: 0
A40: 2014-12-30 | D40: 00:00:00 | E40: 0 | F40: 00:00:00 | G40: 0 | H40: 0 | L40: 0 | M40: 0 | O40: 00:00:00 | P40: 00:00:00 | Q40: 0 | R40: 0
A41: 2014-12-31 | D41: 00:00:00 | E41: 0 | F41: 00:00:00 | G41: 0 | H41: 0 | L41: 0 | M41: 0 | O41: 00:00:00 | P41: 00:00:00 | Q41: 0 | R41: 0
A42: TOTAUX: | D42: =SUM(D11:D41) -> 0 | E42: 0 | F42: 0 | G42: 0 | H42: 0 | I42: 0 | J42: =SUM(J10:J41) -> 0 | K42: =SUM(K10:K41) -> 0 | L42: =SUM(L11:L41) -> 0 | M42: =SUM(M11:M41) -> 0
A45: Total KM parcourue selon le Log Sheets: | E45: Qté (L) de Carburant Fournis par CRS: | H45: Prix par Litre de Carburant: | K45: Cout de Carburant = | M45: =IF(G45=0,0,G45*J45) -> 0
K46: Montant d'Allocation = | M46: =M42+M45 -> 0
G48: Allocation des Couts
A49: DSPNs (ayant bénéficié du véhicule) | C49: KM parcourus par DSPN | E49: % utilisation par DSPN | F49: Location | H49: Carburant | J49: Total
A50: 15506209101 | C50: =IF(SUM(C51:D59)>=C45,0,(C45-SUM(C51:D59))) -> 0 | E50: =IF(C$45=0,0,C50/C$45) -> 0 | F50: =E50*M$42 -> 0 | H50: =E50*M$45 -> 0 | J50: =F50+H50 -> 0
A51: 67726200061 | C51: =0.9*C45 -> 0 | E51: =IF(C$45=0,0,C51/C$45) -> 0 | F51: =E51*M$42 -> 0 | H51: =E51*M$45 -> 0 | J51: =F51+H51 -> 0
A52: 87506200065 | C52: =0.07*C45 -> 0 | E52: 0 | F52: 0 | H52: 0 | J52: =F52+H52 -> 0
E53: 0 | F53: 0 | H53: 0 | J53: 0
E54: 0 | F54: 0 | H54: 0 | J54: 0
E55: 0 | F55: 0 | H55: 0 | J55: 0
E56: 0 | F56: 0 | H56: 0 | J56: 0
E57: 0 | F57: 0 | H57: 0 | J57: 0
E58: 0 | F58: 0 | H58: 0 | J58: 0
E59: 0 | F59: 0 | H59: 0 | J59: =F59+H59 -> 0
A60: TOTAL (pour vérification): | C60: =SUM(C50:D59) -> 0 | E60: =SUM(E50:E59) -> 0 | F60: =SUM(F50:G59) -> 0 | H60: =SUM(H50:I59) -> 0 | J60: =SUM(J50:K59) -> 0
A62: ='Rental Vehicle (1)'!A62:E62 -> 0
A63: Repport prepare par (signature et date) | G63: Rapport verifie et approve (signature et date) | K63: Payment approve par (signature et date)

Sheet Rental Vehicle (6)
A1: CRS VEHICULE DE LOCATION -- FICHE D'UTILSATION ET ALLOCATION DES COUTS
A2: Bureau: | B2: =Instructions!G11 -> BOSSANGOA | G2: Véhicule ID, Marque et Modèle: | J2: =IF(Instructions!D29=0,0,Instructions!D29&", "&Instructions!G29) -> 0
A3: Période: | B3: =Instructions!E15 -> DECEMBRE 2014 | G3: Propriétaire du Véhicule:
A5: Code LC: | B5: =Instructions!G13 -> FCFA | D5: Taux Journalier: | F5: =B5 -> FCFA | H5: Supplément Horaire: | K5: =B5 -> FCFA
A7: MAX Heures de Service: | H7: 23:59:00
B9: CALCULE - PAIEMENT POUR LOCATION | I9: DEDUCTIONS | M9: MONTANT DU
A10: Date | B10: Heure Début | C10: Heure Fin | D10: Heures de Service | E10: ="Montant ("&B5&")" -> Montant (FCFA) | F10: Heures Supp | G10: Paiement - Heures Supp | H10: ="Paiement Dû ("&B5&")" -> Paiement Dû (FCFA) | I10: Avances Carburant | J10: Avances Salaire | K10: Autres Avances | L10: Déductions Totales | M10: ="Montant Journalier ("&B5&")" -> Montant Journalier (FCFA) | O10: Total | P10: Reg | Q10: OT1 | R10: OT2
A11: ='Rental Vehicle (1)'!A11 -> 2014-12-01 | D11: =IF(P11=0,0,P11) -> 00:00:00 | E11: =IF(D11=0,0,G$5) -> 0 | F11: =Q11 -> 00:00:00 | G11: =IF(F11=0,0,R11*L$5) -> 0 | H11: =E11+G11 -> 0 | L11: =-SUM(I11:K11) -> 0 | M11: =IF(H11=0,0,H11+L11) -> 0 | O11: =IF(C11=0,0,IF(C11>B11,C11-B11,C11+1-B11)) -> 00:00:00 | P11: =IF(O11>H$7,H$7,O11) -> 00:00:00 | Q11: =IF(O11>P11,O11-P11,0) -> 0 | R11: =(O11-P11)*24 -> 0
A12: =IF(A11=0,0,A11+1) -> 2014-12-02 | D12: =IF(P12=0,0,P12) -> 00:00:00 | E12: =IF(D12=0,0,G$5) -> 0 | F12: =Q12 -> 00:00:00 | G12: 0 | H12: 0 | L12: =-SUM(I12:K12) -> 0 | M12: =IF(H12=0,0,H12+L12) -> 0 | O12: =IF(C12=0,0,IF(C12>B12,C12-B12,C12+1-B12)) -> 00:00:00 | P12: 00:00:00 | Q12: =IF(O12>P12,O12-P12,0) -> 0 | R12: =(O12-P12)*24 -> 0
A13: =IF(A12=0,0,A12+1) -> 2014-12-03 | D13: 00:00:00 | E13: 0 | F13: 00:00:00 | G13: 0 | H13: 0 | L13: 0 | M13: 0 | O13: 00:00:00 | P13: 00:00:00 | Q13: 0 | R13: 0
A14: 2014-12-04 | D14: 00:00:00 | E14: 0 | F14: 00:00:00 | G14: 0 | H14: 0 | L14: 0 | M14: 0 | O14: 00:00:00 | P14: 00:00:00 | Q14: 0 | R14: 0
A15: 2014-12-05 | D15: 00:00:00 | E15: 0 | F15: 00:00:00 | G15: 0 | H15: 0 | L15: 0 | M15: 0 | O15: 00:00:00 | P15: 00:00:00 | Q15: 0 | R15: 0
A16: 2014-12-06 | D16: 00:00:00 | E16: 0 | F16: 00:00:00 | G16: 0 | H16: 0 | L16: 0 | M16: 0 | O16: 00:00:00 | P16: 00:00:00 | Q16: 0 | R16: 0
A17: 2014-12-07 | D17: 00:00:00 | E17: 0 | F17: 00:00:00 | G17: 0 | H17: 0 | L17: 0 | M17: 0 | O17: 00:00:00 | P17: 00:00:00 | Q17: 0 | R17: 0
A18: 2014-12-08 | D18: 00:00:00 | E18: 0 | F18: 00:00:00 | G18: 0 | H18: 0 | L18: 0 | M18: 0 | O18: 00:00:00 | P18: 00:00:00 | Q18: 0 | R18: 0
A19: 2014-12-09 | D19: 00:00:00 | E19: 0 | F19: 00:00:00 | G19: 0 | H19: 0 | L19: 0 | M19: 0 | O19: 00:00:00 | P19: 00:00:00 | Q19: 0 | R19: 0
A20: 2014-12-10 | D20: 00:00:00 | E20: 0 | F20: 00:00:00 | G20: 0 | H20: 0 | L20: 0 | M20: 0 | O20: 00:00:00 | P20: 00:00:00 | Q20: 0 | R20: 0
A21: 2014-12-11 | D21: 00:00:00 | E21: 0 | F21: 00:00:00 | G21: 0 | H21: 0 | L21: 0 | M21: 0 | O21: 00:00:00 | P21: 00:00:00 | Q21: 0 | R21: 0
A22: 2014-12-12 | D22: 00:00:00 | E22: 0 | F22: 00:00:00 | G22: 0 | H22: 0 | L22: 0 | M22: 0 | O22: 00:00:00 | P22: 00:00:00 | Q22: 0 | R22: 0
A23: 2014-12-13 | D23: 00:00:00 | E23: 0 | F23: 00:00:00 | G23: 0 | H23: 0 | L23: 0 | M23: 0 | O23: 00:00:00 | P23: 00:00:00 | Q23: 0 | R23: 0
A24: 2014-12-14 | D24: 00:00:00 | E24: 0 | F24: 00:00:00 | G24: 0 | H24: 0 | L24: 0 | M24: 0 | O24: 00:00:00 | P24: 00:00:00 | Q24: 0 | R24: 0
A25: 2014-12-15 | D25: 00:00:00 | E25: 0 | F25: 00:00:00 | G25: 0 | H25: 0 | L25: 0 | M25: 0 | O25: 00:00:00 | P25: 00:00:00 | Q25: 0 | R25: 0
A26: 2014-12-16 | D26: 00:00:00 | E26: 0 | F26: 00:00:00 | G26: 0 | H26: 0 | L26: 0 | M26: 0 | O26: 00:00:00 | P26: 00:00:00 | Q26: 0 | R26: 0
A27: 2014-12-17 | D27: 00:00:00 | E27: 0 | F27: 00:00:00 | G27: 0 | H27: 0 | L27: 0 | M27: 0 | O27: 00:00:00 | P27: 00:00:00 | Q27: 0 | R27: 0
A28: 2014-12-18 | D28: 00:00:00 | E28: 0 | F28: 00:00:00 | G28: 0 | H28: 0 | L28: 0 | M28: 0 | O28: 00:00:00 | P28: 00:00:00 | Q28: 0 | R28: 0
A29: 2014-12-19 | D29: 00:00:00 | E29: 0 | F29: 00:00:00 | G29: 0 | H29: 0 | L29: 0 | M29: 0 | O29: 00:00:00 | P29: 00:00:00 | Q29: 0 | R29: 0
A30: 2014-12-20 | D30: 00:00:00 | E30: 0 | F30: 00:00:00 | G30: 0 | H30: 0 | L30: 0 | M30: 0 | O30: 00:00:00 | P30: 00:00:00 | Q30: 0 | R30: 0
A31: 2014-12-21 | D31: 00:00:00 | E31: 0 | F31: 00:00:00 | G31: 0 | H31: 0 | L31: 0 | M31: 0 | O31: 00:00:00 | P31: 00:00:00 | Q31: 0 | R31: 0
A32: 2014-12-22 | D32: 00:00:00 | E32: 0 | F32: 00:00:00 | G32: 0 | H32: 0 | L32: 0 | M32: 0 | O32: 00:00:00 | P32: 00:00:00 | Q32: 0 | R32: 0
A33: 2014-12-23 | D33: 00:00:00 | E33: 0 | F33: 00:00:00 | G33: 0 | H33: 0 | L33: 0 | M33: 0 | O33: 00:00:00 | P33: 00:00:00 | Q33: 0 | R33: 0
A34: 2014-12-24 | D34: 00:00:00 | E34: 0 | F34: 00:00:00 | G34: 0 | H34: 0 | L34: 0 | M34: 0 | O34: 00:00:00 | P34: 00:00:00 | Q34: 0 | R34: 0
A35: 2014-12-25 | D35: 00:00:00 | E35: 0 | F35: 00:00:00 | G35: 0 | H35: 0 | L35: 0 | M35: 0 | O35: 00:00:00 | P35: 00:00:00 | Q35: 0 | R35: 0
A36: 2014-12-26 | D36: 00:00:00 | E36: 0 | F36: 00:00:00 | G36: 0 | H36: 0 | L36: 0 | M36: 0 | O36: 00:00:00 | P36: 00:00:00 | Q36: 0 | R36: 0
A37: 2014-12-27 | D37: 00:00:00 | E37: 0 | F37: 00:00:00 | G37: 0 | H37: 0 | L37: 0 | M37: 0 | O37: 00:00:00 | P37: 00:00:00 | Q37: 0 | R37: 0
A38: 2014-12-28 | D38: 00:00:00 | E38: 0 | F38: 00:00:00 | G38: 0 | H38: 0 | L38: 0 | M38: 0 | O38: 00:00:00 | P38: 00:00:00 | Q38: 0 | R38: 0
A39: 2014-12-29 | D39: 00:00:00 | E39: 0 | F39: 00:00:00 | G39: 0 | H39: 0 | L39: 0 | M39: 0 | O39: 00:00:00 | P39: 00:00:00 | Q39: 0 | R39: 0
A40: 2014-12-30 | D40: 00:00:00 | E40: 0 | F40: 00:00:00 | G40: 0 | H40: 0 | L40: 0 | M40: 0 | O40: 00:00:00 | P40: 00:00:00 | Q40: 0 | R40: 0
A41: 2014-12-31 | D41: 00:00:00 | E41: 0 | F41: 00:00:00 | G41: 0 | H41: 0 | L41: 0 | M41: 0 | O41: 00:00:00 | P41: 00:00:00 | Q41: 0 | R41: 0
A42: TOTAUX: | D42: =SUM(D11:D41) -> 0 | E42: 0 | F42: 0 | G42: 0 | H42: 0 | I42: 0 | J42: =SUM(J10:J41) -> 0 | K42: =SUM(K10:K41) -> 0 | L42: =SUM(L11:L41) -> 0 | M42: =SUM(M11:M41) -> 0
A45: Total KM parcourue selon le Log Sheets: | E45: Qté (L) de Carburant Fournis par CRS: | H45: Prix par Litre de Carburant: | K45: Cout de Carburant = | M45: =IF(G45=0,0,G45*J45) -> 0
K46: Montant d'Allocation = | M46: =M42+M45 -> 0
G48: Allocation des Couts
A49: DSPNs (ayant bénéficié du véhicule) | C49: KM parcourus par DSPN | E49: % utilisation par DSPN | F49: Location | H49: Carburant | J49: Total
A50: 15506209101 | C50: =IF(SUM(C51:D59)>=C45,0,(C45-SUM(C51:D59))) -> 0 | E50: =IF(C$45=0,0,C50/C$45) -> 0 | F50: =E50*M$42 -> 0 | H50: =E50*M$45 -> 0 | J50: =F50+H50 -> 0
A51: 67726200061 | C51: =0.9*C45 -> 0 | E51: =IF(C$45=0,0,C51/C$45) -> 0 | F51: =E51*M$42 -> 0 | H51: =E51*M$45 -> 0 | J51: =F51+H51 -> 0
A52: 87506200065 | C52: =0.07*C45 -> 0 | E52: 0 | F52: 0 | H52: 0 | J52: =F52+H52 -> 0
E53: 0 | F53: 0 | H53: 0 | J53: 0
E54: 0 | F54: 0 | H54: 0 | J54: 0
E55: 0 | F55: 0 | H55: 0 | J55: 0
E56: 0 | F56: 0 | H56: 0 | J56: 0
E57: 0 | F57: 0 | H57: 0 | J57: 0
E58: 0 | F58: 0 | H58: 0 | J58: 0
E59: 0 | F59: 0 | H59: 0 | J59: =F59+H59 -> 0
A60: TOTAL (pour vérification): | C60: =SUM(C50:D59) -> 0 | E60: =SUM(E50:E59) -> 0 | F60: =SUM(F50:G59) -> 0 | H60: =SUM(H50:I59) -> 0 | J60: =SUM(J50:K59) -> 0
A62: ='Rental Vehicle (1)'!A62:E62 -> 0
A63: Repport prepare par (signature et date) | G63: Rapport verifie et approve (signature et date) | K63: Payment approve par (signature et date)

Sheet Rental Vehicle (7)
A1: CRS VEHICULE DE LOCATION -- FICHE D'UTILSATION ET ALLOCATION DES COUTS
A2: Bureau: | B2: =Instructions!G11 -> BOSSANGOA | G2: Véhicule ID, Marque et Modèle: | J2: =IF(Instructions!D31=0,0,Instructions!D31&", "&Instructions!G31) -> 0
A3: Période: | B3: =Instructions!E15 -> DECEMBRE 2014 | G3: Propriétaire du Véhicule:
A5: Code LC: | B5: =Instructions!G13 -> FCFA | D5: Taux Journalier: | F5: =B5 -> FCFA | H5: Supplément Horaire: | K5: =B5 -> FCFA
A7: MAX Heures de Service: | H7: 23:59:00
B9: CALCULE - PAIEMENT POUR LOCATION | I9: DEDUCTIONS | M9: MONTANT DU
A10: Date | B10: Heure Début | C10: Heure Fin | D10: Heures de Service | E10: ="Montant ("&B5&")" -> Montant (FCFA) | F10: Heures Supp | G10: Paiement - Heures Supp | H10: ="Paiement Dû ("&B5&")" -> Paiement Dû (FCFA) | I10: Avances Carburant | J10: Avances Salaire | K10: Autres Avances | L10: Déductions Totales | M10: ="Montant Journalier ("&B5&")" -> Montant Journalier (FCFA) | O10: Total | P10: Reg | Q10: OT1 | R10: OT2
A11: ='Rental Vehicle (1)'!A11 -> 2014-12-01 | D11: =IF(P11=0,0,P11) -> 00:00:00 | E11: =IF(D11=0,0,G$5) -> 0 | F11: =Q11 -> 00:00:00 | G11: =IF(F11=0,0,R11*L$5) -> 0 | H11: =E11+G11 -> 0 | L11: =-SUM(I11:K11) -> 0 | M11: =IF(H11=0,0,H11+L11) -> 0 | O11: =IF(C11=0,0,IF(C11>B11,C11-B11,C11+1-B11)) -> 00:00:00 | P11: =IF(O11>H$7,H$7,O11) -> 00:00:00 | Q11: =IF(O11>P11,O11-P11,0) -> 0 | R11: =(O11-P11)*24 -> 0
A12: =IF(A11=0,0,A11+1) -> 2014-12-02 | D12: =IF(P12=0,0,P12) -> 00:00:00 | E12: =IF(D12=0,0,G$5) -> 0 | F12: =Q12 -> 00:00:00 | G12: 0 | H12: 0 | L12: =-SUM(I12:K12) -> 0 | M12: =IF(H12=0,0,H12+L12) -> 0 | O12: =IF(C12=0,0,IF(C12>B12,C12-B12,C12+1-B12)) -> 00:00:00 | P12: 00:00:00 | Q12: =IF(O12>P12,O12-P12,0) -> 0 | R12: =(O12-P12)*24 -> 0
A13: =IF(A12=0,0,A12+1) -> 2014-12-03 | D13: 00:00:00 | E13: 0 | F13: 00:00:00 | G13: 0 | H13: 0 | L13: 0 | M13: 0 | O13: 00:00:00 | P13: 00:00:00 | Q13: 0 | R13: 0
A14: 2014-12-04 | D14: 00:00:00 | E14: 0 | F14: 00:00:00 | G14: 0 | H14: 0 | L14: 0 | M14: 0 | O14: 00:00:00 | P14: 00:00:00 | Q14: 0 | R14: 0
A15: 2014-12-05 | D15: 00:00:00 | E15: 0 | F15: 00:00:00 | G15: 0 | H15: 0 | L15: 0 | M15: 0 | O15: 00:00:00 | P15: 00:00:00 | Q15: 0 | R15: 0
A16: 2014-12-06 | D16: 00:00:00 | E16: 0 | F16: 00:00:00 | G16: 0 | H16: 0 | L16: 0 | M16: 0 | O16: 00:00:00 | P16: 00:00:00 | Q16: 0 | R16: 0
A17: 2014-12-07 | D17: 00:00:00 | E17: 0 | F17: 00:00:00 | G17: 0 | H17: 0 | L17: 0 | M17: 0 | O17: 00:00:00 | P17: 00:00:00 | Q17: 0 | R17: 0
A18: 2014-12-08 | D18: 00:00:00 | E18: 0 | F18: 00:00:00 | G18: 0 | H18: 0 | L18: 0 | M18: 0 | O18: 00:00:00 | P18: 00:00:00 | Q18: 0 | R18: 0
A19: 2014-12-09 | D19: 00:00:00 | E19: 0 | F19: 00:00:00 | G19: 0 | H19: 0 | L19: 0 | M19: 0 | O19: 00:00:00 | P19: 00:00:00 | Q19: 0 | R19: 0
A20: 2014-12-10 | D20: 00:00:00 | E20: 0 | F20: 00:00:00 | G20: 0 | H20: 0 | L20: 0 | M20: 0 | O20: 00:00:00 | P20: 00:00:00 | Q20: 0 | R20: 0
A21: 2014-12-11 | D21: 00:00:00 | E21: 0 | F21: 00:00:00 | G21: 0 | H21: 0 | L21: 0 | M21: 0 | O21: 00:00:00 | P21: 00:00:00 | Q21: 0 | R21: 0
A22: 2014-12-12 | D22: 00:00:00 | E22: 0 | F22: 00:00:00 | G22: 0 | H22: 0 | L22: 0 | M22: 0 | O22: 00:00:00 | P22: 00:00:00 | Q22: 0 | R22: 0
A23: 2014-12-13 | D23: 00:00:00 | E23: 0 | F23: 00:00:00 | G23: 0 | H23: 0 | L23: 0 | M23: 0 | O23: 00:00:00 | P23: 00:00:00 | Q23: 0 | R23: 0
A24: 2014-12-14 | D24: 00:00:00 | E24: 0 | F24: 00:00:00 | G24: 0 | H24: 0 | L24: 0 | M24: 0 | O24: 00:00:00 | P24: 00:00:00 | Q24: 0 | R24: 0
A25: 2014-12-15 | D25: 00:00:00 | E25: 0 | F25: 00:00:00 | G25: 0 | H25: 0 | L25: 0 | M25: 0 | O25: 00:00:00 | P25: 00:00:00 | Q25: 0 | R25: 0
A26: 2014-12-16 | D26: 00:00:00 | E26: 0 | F26: 00:00:00 | G26: 0 | H26: 0 | L26: 0 | M26: 0 | O26: 00:00:00 | P26: 00:00:00 | Q26: 0 | R26: 0
A27: 2014-12-17 | D27: 00:00:00 | E27: 0 | F27: 00:00:00 | G27: 0 | H27: 0 | L27: 0 | M27: 0 | O27: 00:00:00 | P27: 00:00:00 | Q27: 0 | R27: 0
A28: 2014-12-18 | D28: 00:00:00 | E28: 0 | F28: 00:00:00 | G28: 0 | H28: 0 | L28: 0 | M28: 0 | O28: 00:00:00 | P28: 00:00:00 | Q28: 0 | R28: 0
A29: 2014-12-19 | D29: 00:00:00 | E29: 0 | F29: 00:00:00 | G29: 0 | H29: 0 | L29: 0 | M29: 0 | O29: 00:00:00 | P29: 00:00:00 | Q29: 0 | R29: 0
A30: 2014-12-20 | D30: 00:00:00 | E30: 0 | F30: 00:00:00 | G30: 0 | H30: 0 | L30: 0 | M30: 0 | O30: 00:00:00 | P30: 00:00:00 | Q30: 0 | R30: 0
A31: 2014-12-21 | D31: 00:00:00 | E31: 0 | F31: 00:00:00 | G31: 0 | H31: 0 | L31: 0 | M31: 0 | O31: 00:00:00 | P31: 00:00:00 | Q31: 0 | R31: 0
A32: 2014-12-22 | D32: 00:00:00 | E32: 0 | F32: 00:00:00 | G32: 0 | H32: 0 | L32: 0 | M32: 0 | O32: 00:00:00 | P32: 00:00:00 | Q32: 0 | R32: 0
A33: 2014-12-23 | D33: 00:00:00 | E33: 0 | F33: 00:00:00 | G33: 0 | H33: 0 | L33: 0 | M33: 0 | O33: 00:00:00 | P33: 00:00:00 | Q33: 0 | R33: 0
A34: 2014-12-24 | D34: 00:00:00 | E34: 0 | F34: 00:00:00 | G34: 0 | H34: 0 | L34: 0 | M34: 0 | O34: 00:00:00 | P34: 00:00:00 | Q34: 0 | R34: 0
A35: 2014-12-25 | D35: 00:00:00 | E35: 0 | F35: 00:00:00 | G35: 0 | H35: 0 | L35: 0 | M35: 0 | O35: 00:00:00 | P35: 00:00:00 | Q35: 0 | R35: 0
A36: 2014-12-26 | D36: 00:00:00 | E36: 0 | F36: 00:00:00 | G36: 0 | H36: 0 | L36: 0 | M36: 0 | O36: 00:00:00 | P36: 00:00:00 | Q36: 0 | R36: 0
A37: 2014-12-27 | D37: 00:00:00 | E37: 0 | F37: 00:00:00 | G37: 0 | H37: 0 | L37: 0 | M37: 0 | O37: 00:00:00 | P37: 00:00:00 | Q37: 0 | R37: 0
A38: 2014-12-28 | D38: 00:00:00 | E38: 0 | F38: 00:00:00 | G38: 0 | H38: 0 | L38: 0 | M38: 0 | O38: 00:00:00 | P38: 00:00:00 | Q38: 0 | R38: 0
A39: 2014-12-29 | D39: 00:00:00 | E39: 0 | F39: 00:00:00 | G39: 0 | H39: 0 | L39: 0 | M39: 0 | O39: 00:00:00 | P39: 00:00:00 | Q39: 0 | R39: 0
A40: 2014-12-30 | D40: 00:00:00 | E40: 0 | F40: 00:00:00 | G40: 0 | H40: 0 | L40: 0 | M40: 0 | O40: 00:00:00 | P40: 00:00:00 | Q40: 0 | R40: 0
A41: 2014-12-31 | D41: 00:00:00 | E41: 0 | F41: 00:00:00 | G41: 0 | H41: 0 | L41: 0 | M41: 0 | O41: 00:00:00 | P41: 00:00:00 | Q41: 0 | R41: 0
A42: TOTAUX: | D42: =SUM(D11:D41) -> 0 | E42: 0 | F42: 0 | G42: 0 | H42: 0 | I42: 0 | J42: =SUM(J10:J41) -> 0 | K42: =SUM(K10:K41) -> 0 | L42: =SUM(L11:L41) -> 0 | M42: =SUM(M11:M41) -> 0
A45: Total KM parcourue selon le Log Sheets: | E45: Qté (L) de Carburant Fournis par CRS: | H45: Prix par Litre de Carburant: | K45: Cout de Carburant = | M45: =IF(G45=0,0,G45*J45) -> 0
K46: Montant d'Allocation = | M46: =M42+M45 -> 0
G48: Allocation des Couts
A49: DSPNs (ayant bénéficié du véhicule) | C49: KM parcourus par DSPN | E49: % utilisation par DSPN | F49: Location | H49: Carburant | J49: Total
A50: 15506209101 | C50: =IF(SUM(C51:D59)>=C45,0,(C45-SUM(C51:D59))) -> 0 | E50: =IF(C$45=0,0,C50/C$45) -> 0 | F50: =E50*M$42 -> 0 | H50: =E50*M$45 -> 0 | J50: =F50+H50 -> 0
A51: 67726200061 | C51: =0.9*C45 -> 0 | E51: =IF(C$45=0,0,C51/C$45) -> 0 | F51: =E51*M$42 -> 0 | H51: =E51*M$45 -> 0 | J51: =F51+H51 -> 0
A52: 87506200065 | C52: =0.07*C45 -> 0 | E52: 0 | F52: 0 | H52: 0 | J52: =F52+H52 -> 0
E53: 0 | F53: 0 | H53: 0 | J53: 0
E54: 0 | F54: 0 | H54: 0 | J54: 0
E55: 0 | F55: 0 | H55: 0 | J55: 0
E56: 0 | F56: 0 | H56: 0 | J56: 0
E57: 0 | F57: 0 | H57: 0 | J57: 0
E58: 0 | F58: 0 | H58: 0 | J58: 0
E59: 0 | F59: 0 | H59: 0 | J59: =F59+H59 -> 0
A60: TOTAL (pour vérification): | C60: =SUM(C50:D59) -> 0 | E60: =SUM(E50:E59) -> 0 | F60: =SUM(F50:G59) -> 0 | H60: =SUM(H50:I59) -> 0 | J60: =SUM(J50:K59) -> 0
A62: ='Rental Vehicle (1)'!A62:E62 -> 0
A63: Repport prepare par (signature et date) | G63: Rapport verifie et approve (signature et date) | K63: Payment approve par (signature et date)

Sheet Rental Vehicle (8)
A1: CRS VEHICULE DE LOCATION -- FICHE D'UTILSATION ET ALLOCATION DES COUTS
A2: Bureau: | B2: =Instructions!G11 -> BOSSANGOA | G2: Véhicule ID, Marque et Modèle: | J2: =IF(Instructions!D33=0,0,Instructions!D33&", "&Instructions!G33) -> 0
A3: Période: | B3: =Instructions!E15 -> DECEMBRE 2014 | G3: Propriétaire du Véhicule:
A5: Code LC: | B5: =Instructions!G13 -> FCFA | D5: Taux Journalier: | F5: =B5 -> FCFA | H5: Supplément Horaire: | K5: =B5 -> FCFA
A7: MAX Heures de Service: | H7: 23:59:00
B9: CALCULE - PAIEMENT POUR LOCATION | I9: DEDUCTIONS | M9: MONTANT DU
A10: Date | B10: Heure Début | C10: Heure Fin | D10: Heures de Service | E10: ="Montant ("&B5&")" -> Montant (FCFA) | F10: Heures Supp | G10: Paiement - Heures Supp | H10: ="Paiement Dû ("&B5&")" -> Paiement Dû (FCFA) | I10: Avances Carburant | J10: Avances Salaire | K10: Autres Avances | L10: Déductions Totales | M10: ="Montant Journalier ("&B5&")" -> Montant Journalier (FCFA) | O10: Total | P10: Reg | Q10: OT1 | R10: OT2
A11: ='Rental Vehicle (1)'!A11 -> 2014-12-01 | D11: =IF(P11=0,0,P11) -> 00:00:00 | E11: =IF(D11=0,0,G$5) -> 0 | F11: =Q11 -> 00:00:00 | G11: =IF(F11=0,0,R11*L$5) -> 0 | H11: =E11+G11 -> 0 | L11: =-SUM(I11:K11) -> 0 | M11: =IF(H11=0,0,H11+L11) -> 0 | O11: =IF(C11=0,0,IF(C11>B11,C11-B11,C11+1-B11)) -> 00:00:00 | P11: =IF(O11>H$7,H$7,O11) -> 00:00:00 | Q11: =IF(O11>P11,O11-P11,0) -> 0 | R11: =(O11-P11)*24 -> 0
A12: =IF(A11=0,0,A11+1) -> 2014-12-02 | D12: =IF(P12=0,0,P12) -> 00:00:00 | E12: =IF(D12=0,0,G$5) -> 0 | F12: =Q12 -> 00:00:00 | G12: 0 | H12: 0 | L12: =-SUM(I12:K12) -> 0 | M12: =IF(H12=0,0,H12+L12) -> 0 | O12: =IF(C12=0,0,IF(C12>B12,C12-B12,C12+1-B12)) -> 00:00:00 | P12: 00:00:00 | Q12: =IF(O12>P12,O12-P12,0) -> 0 | R12: =(O12-P12)*24 -> 0
A13: =IF(A12=0,0,A12+1) -> 2014-12-03 | D13: 00:00:00 | E13: 0 | F13: 00:00:00 | G13: 0 | H13: 0 | L13: 0 | M13: 0 | O13: 00:00:00 | P13: 00:00:00 | Q13: 0 | R13: 0
A14: 2014-12-04 | D14: 00:00:00 | E14: 0 | F14: 00:00:00 | G14: 0 | H14: 0 | L14: 0 | M14: 0 | O14: 00:00:00 | P14: 00:00:00 | Q14: 0 | R14: 0
A15: 2014-12-05 | D15: 00:00:00 | E15: 0 | F15: 00:00:00 | G15: 0 | H15: 0 | L15: 0 | M15: 0 | O15: 00:00:00 | P15: 00:00:00 | Q15: 0 | R15: 0
A16: 2014-12-06 | D16: 00:00:00 | E16: 0 | F16: 00:00:00 | G16: 0 | H16: 0 | L16: 0 | M16: 0 | O16: 00:00:00 | P16: 00:00:00 | Q16: 0 | R16: 0
A17: 2014-12-07 | D17: 00:00:00 | E17: 0 | F17: 00:00:00 | G17: 0 | H17: 0 | L17: 0 | M17: 0 | O17: 00:00:00 | P17: 00:00:00 | Q17: 0 | R17: 0
A18: 2014-12-08 | D18: 00:00:00 | E18: 0 | F18: 00:00:00 | G18: 0 | H18: 0 | L18: 0 | M18: 0 | O18: 00:00:00 | P18: 00:00:00 | Q18: 0 | R18: 0
A19: 2014-12-09 | D19: 00:00:00 | E19: 0 | F19: 00:00:00 | G19: 0 | H19: 0 | L19: 0 | M19: 0 | O19: 00:00:00 | P19: 00:00:00 | Q19: 0 | R19: 0
A20: 2014-12-10 | D20: 00:00:00 | E20: 0 | F20: 00:00:00 | G20: 0 | H20: 0 | L20: 0 | M20: 0 | O20: 00:00:00 | P20: 00:00:00 | Q20: 0 | R20: 0
A21: 2014-12-11 | D21: 00:00:00 | E21: 0 | F21: 00:00:00 | G21: 0 | H21: 0 | L21: 0 | M21: 0 | O21: 00:00:00 | P21: 00:00:00 | Q21: 0 | R21: 0
A22: 2014-12-12 | D22: 00:00:00 | E22: 0 | F22: 00:00:00 | G22: 0 | H22: 0 | L22: 0 | M22: 0 | O22: 00:00:00 | P22: 00:00:00 | Q22: 0 | R22: 0
A23: 2014-12-13 | D23: 00:00:00 | E23: 0 | F23: 00:00:00 | G23: 0 | H23: 0 | L23: 0 | M23: 0 | O23: 00:00:00 | P23: 00:00:00 | Q23: 0 | R23: 0
A24: 2014-12-14 | D24: 00:00:00 | E24: 0 | F24: 00:00:00 | G24: 0 | H24: 0 | L24: 0 | M24: 0 | O24: 00:00:00 | P24: 00:00:00 | Q24: 0 | R24: 0
A25: 2014-12-15 | D25: 00:00:00 | E25: 0 | F25: 00:00:00 | G25: 0 | H25: 0 | L25: 0 | M25: 0 | O25: 00:00:00 | P25: 00:00:00 | Q25: 0 | R25: 0
A26: 2014-12-16 | D26: 00:00:00 | E26: 0 | F26: 00:00:00 | G26: 0 | H26: 0 | L26: 0 | M26: 0 | O26: 00:00:00 | P26: 00:00:00 | Q26: 0 | R26: 0
A27: 2014-12-17 | D27: 00:00:00 | E27: 0 | F27: 00:00:00 | G27: 0 | H27: 0 | L27: 0 | M27: 0 | O27: 00:00:00 | P27: 00:00:00 | Q27: 0 | R27: 0
A28: 2014-12-18 | D28: 00:00:00 | E28: 0 | F28: 00:00:00 | G28: 0 | H28: 0 | L28: 0 | M28: 0 | O28: 00:00:00 | P28: 00:00:00 | Q28: 0 | R28: 0
A29: 2014-12-19 | D29: 00:00:00 | E29: 0 | F29: 00:00:00 | G29: 0 | H29: 0 | L29: 0 | M29: 0 | O29: 00:00:00 | P29: 00:00:00 | Q29: 0 | R29: 0
A30: 2014-12-20 | D30: 00:00:00 | E30: 0 | F30: 00:00:00 | G30: 0 | H30: 0 | L30: 0 | M30: 0 | O30: 00:00:00 | P30: 00:00:00 | Q30: 0 | R30: 0
A31: 2014-12-21 | D31: 00:00:00 | E31: 0 | F31: 00:00:00 | G31: 0 | H31: 0 | L31: 0 | M31: 0 | O31: 00:00:00 | P31: 00:00:00 | Q31: 0 | R31: 0
A32: 2014-12-22 | D32: 00:00:00 | E32: 0 | F32: 00:00:00 | G32: 0 | H32: 0 | L32: 0 | M32: 0 | O32: 00:00:00 | P32: 00:00:00 | Q32: 0 | R32: 0
A33: 2014-12-23 | D33: 00:00:00 | E33: 0 | F33: 00:00:00 | G33: 0 | H33: 0 | L33: 0 | M33: 0 | O33: 00:00:00 | P33: 00:00:00 | Q33: 0 | R33: 0
A34: 2014-12-24 | D34: 00:00:00 | E34: 0 | F34: 00:00:00 | G34: 0 | H34: 0 | L34: 0 | M34: 0 | O34: 00:00:00 | P34: 00:00:00 | Q34: 0 | R34: 0
A35: 2014-12-25 | D35: 00:00:00 | E35: 0 | F35: 00:00:00 | G35: 0 | H35: 0 | L35: 0 | M35: 0 | O35: 00:00:00 | P35: 00:00:00 | Q35: 0 | R35: 0
A36: 2014-12-26 | D36: 00:00:00 | E36: 0 | F36: 00:00:00 | G36: 0 | H36: 0 | L36: 0 | M36: 0 | O36: 00:00:00 | P36: 00:00:00 | Q36: 0 | R36: 0
A37: 2014-12-27 | D37: 00:00:00 | E37: 0 | F37: 00:00:00 | G37: 0 | H37: 0 | L37: 0 | M37: 0 | O37: 00:00:00 | P37: 00:00:00 | Q37: 0 | R37: 0
A38: 2014-12-28 | D38: 00:00:00 | E38: 0 | F38: 00:00:00 | G38: 0 | H38: 0 | L38: 0 | M38: 0 | O38: 00:00:00 | P38: 00:00:00 | Q38: 0 | R38: 0
A39: 2014-12-29 | D39: 00:00:00 | E39: 0 | F39: 00:00:00 | G39: 0 | H39: 0 | L39: 0 | M39: 0 | O39: 00:00:00 | P39: 00:00:00 | Q39: 0 | R39: 0
A40: 2014-12-30 | D40: 00:00:00 | E40: 0 | F40: 00:00:00 | G40: 0 | H40: 0 | L40: 0 | M40: 0 | O40: 00:00:00 | P40: 00:00:00 | Q40: 0 | R40: 0
A41: 2014-12-31 | D41: 00:00:00 | E41: 0 | F41: 00:00:00 | G41: 0 | H41: 0 | L41: 0 | M41: 0 | O41: 00:00:00 | P41: 00:00:00 | Q41: 0 | R41: 0
A42: TOTAUX: | D42: =SUM(D11:D41) -> 0 | E42: 0 | F42: 0 | G42: 0 | H42: 0 | I42: 0 | J42: =SUM(J10:J41) -> 0 | K42: =SUM(K10:K41) -> 0 | L42: =SUM(L11:L41) -> 0 | M42: =SUM(M11:M41) -> 0
A45: Total KM parcourue selon le Log Sheets: | E45: Qté (L) de Carburant Fournis par CRS: | H45: Prix par Litre de Carburant: | K45: Cout de Carburant = | M45: =IF(G45=0,0,G45*J45) -> 0
K46: Montant d'Allocation = | M46: =M42+M45 -> 0
G48: Allocation des Couts
A49: DSPNs (ayant bénéficié du véhicule) | C49: KM parcourus par DSPN | E49: % utilisation par DSPN | F49: Location | H49: Carburant | J49: Total
A50: 15506209101 | C50: =IF(SUM(C51:D59)>=C45,0,(C45-SUM(C51:D59))) -> 0 | E50: =IF(C$45=0,0,C50/C$45) -> 0 | F50: =E50*M$42 -> 0 | H50: =E50*M$45 -> 0 | J50: =F50+H50 -> 0
A51: 67726200061 | C51: =0.9*C45 -> 0 | E51: =IF(C$45=0,0,C51/C$45) -> 0 | F51: =E51*M$42 -> 0 | H51: =E51*M$45 -> 0 | J51: =F51+H51 -> 0
A52: 87506200065 | C52: =0.07*C45 -> 0 | E52: 0 | F52: 0 | H52: 0 | J52: =F52+H52 -> 0
E53: 0 | F53: 0 | H53: 0 | J53: 0
E54: 0 | F54: 0 | H54: 0 | J54: 0
E55: 0 | F55: 0 | H55: 0 | J55: 0
E56: 0 | F56: 0 | H56: 0 | J56: 0
E57: 0 | F57: 0 | H57: 0 | J57: 0
E58: 0 | F58: 0 | H58: 0 | J58: 0
E59: 0 | F59: 0 | H59: 0 | J59: =F59+H59 -> 0
A60: TOTAL (pour vérification): | C60: =SUM(C50:D59) -> 0 | E60: =SUM(E50:E59) -> 0 | F60: =SUM(F50:G59) -> 0 | H60: =SUM(H50:I59) -> 0 | J60: =SUM(J50:K59) -> 0
A62: ='Rental Vehicle (1)'!A62:E62 -> 0
A63: Repport prepare par (signature et date) | G63: Rapport verifie et approve (signature et date) | K63: Payment approve par (signature et date)

Sheet Rental Vehicle (9)
A1: CRS VEHICULE DE LOCATION -- FICHE D'UTILSATION ET ALLOCATION DES COUTS
A2: Bureau: | B2: =Instructions!G11 -> BOSSANGOA | G2: Véhicule ID, Marque et Modèle: | J2: =IF(Instructions!D35=0,0,Instructions!D35&", "&Instructions!G35) -> 0
A3: Période: | B3: =Instructions!E15 -> DECEMBRE 2014 | G3: Propriétaire du Véhicule:
A5: Code LC: | B5: =Instructions!G13 -> FCFA | D5: Taux Journalier: | F5: =B5 -> FCFA | H5: Supplément Horaire: | K5: =B5 -> FCFA
A7: MAX Heures de Service: | H7: 23:59:00
B9: CALCULE - PAIEMENT POUR LOCATION | I9: DEDUCTIONS | M9: MONTANT DU
A10: Date | B10: Heure Début | C10: Heure Fin | D10: Heures de Service | E10: ="Montant ("&B5&")" -> Montant (FCFA) | F10: Heures Supp | G10: Paiement - Heures Supp | H10: ="Paiement Dû ("&B5&")" -> Paiement Dû (FCFA) | I10: Avances Carburant | J10: Avances Salaire | K10: Autres Avances | L10: Déductions Totales | M10: ="Montant Journalier ("&B5&")" -> Montant Journalier (FCFA) | O10: Total | P10: Reg | Q10: OT1 | R10: OT2
A11: ='Rental Vehicle (1)'!A11 -> 2014-12-01 | D11: =IF(P11=0,0,P11) -> 00:00:00 | E11: =IF(D11=0,0,G$5) -> 0 | F11: =Q11 -> 00:00:00 | G11: =IF(F11=0,0,R11*L$5) -> 0 | H11: =E11+G11 -> 0 | L11: =-SUM(I11:K11) -> 0 | M11: =IF(H11=0,0,H11+L11) -> 0 | O11: =IF(C11=0,0,IF(C11>B11,C11-B11,C11+1-B11)) -> 00:00:00 | P11: =IF(O11>H$7,H$7,O11) -> 00:00:00 | Q11: =IF(O11>P11,O11-P11,0) -> 0 | R11: =(O11-P11)*24 -> 0
A12: =IF(A11=0,0,A11+1) -> 2014-12-02 | D12: =IF(P12=0,0,P12) -> 00:00:00 | E12: =IF(D12=0,0,G$5) -> 0 | F12: =Q12 -> 00:00:00 | G12: 0 | H12: 0 | L12: =-SUM(I12:K12) -> 0 | M12: =IF(H12=0,0,H12+L12) -> 0 | O12: =IF(C12=0,0,IF(C12>B12,C12-B12,C12+1-B12)) -> 00:00:00 | P12: 00:00:00 | Q12: =IF(O12>P12,O12-P12,0) -> 0 | R12: =(O12-P12)*24 -> 0
A13: =IF(A12=0,0,A12+1) -> 2014-12-03 | D13: 00:00:00 | E13: 0 | F13: 00:00:00 | G13: 0 | H13: 0 | L13: 0 | M13: 0 | O13: 00:00:00 | P13: 00:00:00 | Q13: 0 | R13: 0
A14: 2014-12-04 | D14: 00:00:00 | E14: 0 | F14: 00:00:00 | G14: 0 | H14: 0 | L14: 0 | M14: 0 | O14: 00:00:00 | P14: 00:00:00 | Q14: 0 | R14: 0
A15: 2014-12-05 | D15: 00:00:00 | E15: 0 | F15: 00:00:00 | G15: 0 | H15: 0 | L15: 0 | M15: 0 | O15: 00:00:00 | P15: 00:00:00 | Q15: 0 | R15: 0
A16: 2014-12-06 | D16: 00:00:00 | E16: 0 | F16: 00:00:00 | G16: 0 | H16: 0 | L16: 0 | M16: 0 | O16: 00:00:00 | P16: 00:00:00 | Q16: 0 | R16: 0
A17: 2014-12-07 | D17: 00:00:00 | E17: 0 | F17: 00:00:00 | G17: 0 | H17: 0 | L17: 0 | M17: 0 | O17: 00:00:00 | P17: 00:00:00 | Q17: 0 | R17: 0
A18: 2014-12-08 | D18: 00:00:00 | E18: 0 | F18: 00:00:00 | G18: 0 | H18: 0 | L18: 0 | M18: 0 | O18: 00:00:00 | P18: 00:00:00 | Q18: 0 | R18: 0
A19: 2014-12-09 | D19: 00:00:00 | E19: 0 | F19: 00:00:00 | G19: 0 | H19: 0 | L19: 0 | M19: 0 | O19: 00:00:00 | P19: 00:00:00 | Q19: 0 | R19: 0
A20: 2014-12-10 | D20: 00:00:00 | E20: 0 | F20: 00:00:00 | G20: 0 | H20: 0 | L20: 0 | M20: 0 | O20: 00:00:00 | P20: 00:00:00 | Q20: 0 | R20: 0
A21: 2014-12-11 | D21: 00:00:00 | E21: 0 | F21: 00:00:00 | G21: 0 | H21: 0 | L21: 0 | M21: 0 | O21: 00:00:00 | P21: 00:00:00 | Q21: 0 | R21: 0
A22: 2014-12-12 | D22: 00:00:00 | E22: 0 | F22: 00:00:00 | G22: 0 | H22: 0 | L22: 0 | M22: 0 | O22: 00:00:00 | P22: 00:00:00 | Q22: 0 | R22: 0
A23: 2014-12-13 | D23: 00:00:00 | E23: 0 | F23: 00:00:00 | G23: 0 | H23: 0 | L23: 0 | M23: 0 | O23: 00:00:00 | P23: 00:00:00 | Q23: 0 | R23: 0
A24: 2014-12-14 | D24: 00:00:00 | E24: 0 | F24: 00:00:00 | G24: 0 | H24: 0 | L24: 0 | M24: 0 | O24: 00:00:00 | P24: 00:00:00 | Q24: 0 | R24: 0
A25: 2014-12-15 | D25: 00:00:00 | E25: 0 | F25: 00:00:00 | G25: 0 | H25: 0 | L25: 0 | M25: 0 | O25: 00:00:00 | P25: 00:00:00 | Q25: 0 | R25: 0
A26: 2014-12-16 | D26: 00:00:00 | E26: 0 | F26: 00:00:00 | G26: 0 | H26: 0 | L26: 0 | M26: 0 | O26: 00:00:00 | P26: 00:00:00 | Q26: 0 | R26: 0
A27: 2014-12-17 | D27: 00:00:00 | E27: 0 | F27: 00:00:00 | G27: 0 | H27: 0 | L27: 0 | M27: 0 | O27: 00:00:00 | P27: 00:00:00 | Q27: 0 | R27: 0
A28: 2014-12-18 | D28: 00:00:00 | E28: 0 | F28: 00:00:00 | G28: 0 | H28: 0 | L28: 0 | M28: 0 | O28: 00:00:00 | P28: 00:00:00 | Q28: 0 | R28: 0
A29: 2014-12-19 | D29: 00:00:00 | E29: 0 | F29: 00:00:00 | G29: 0 | H29: 0 | L29: 0 | M29: 0 | O29: 00:00:00 | P29: 00:00:00 | Q29: 0 | R29: 0
A30: 2014-12-20 | D30: 00:00:00 | E30: 0 | F30: 00:00:00 | G30: 0 | H30: 0 | L30: 0 | M30: 0 | O30: 00:00:00 | P30: 00:00:00 | Q30: 0 | R30: 0
A31: 2014-12-21 | D31: 00:00:00 | E31: 0 | F31: 00:00:00 | G31: 0 | H31: 0 | L31: 0 | M31: 0 | O31: 00:00:00 | P31: 00:00:00 | Q31: 0 | R31: 0
A32: 2014-12-22 | D32: 00:00:00 | E32: 0 | F32: 00:00:00 | G32: 0 | H32: 0 | L32: 0 | M32: 0 | O32: 00:00:00 | P32: 00:00:00 | Q32: 0 | R32: 0
A33: 2014-12-23 | D33: 00:00:00 | E33: 0 | F33: 00:00:00 | G33: 0 | H33: 0 | L33: 0 | M33: 0 | O33: 00:00:00 | P33: 00:00:00 | Q33: 0 | R33: 0
A34: 2014-12-24 | D34: 00:00:00 | E34: 0 | F34: 00:00:00 | G34: 0 | H34: 0 | L34: 0 | M34: 0 | O34: 00:00:00 | P34: 00:00:00 | Q34: 0 | R34: 0
A35: 2014-12-25 | D35: 00:00:00 | E35: 0 | F35: 00:00:00 | G35: 0 | H35: 0 | L35: 0 | M35: 0 | O35: 00:00:00 | P35: 00:00:00 | Q35: 0 | R35: 0
A36: 2014-12-26 | D36: 00:00:00 | E36: 0 | F36: 00:00:00 | G36: 0 | H36: 0 | L36: 0 | M36: 0 | O36: 00:00:00 | P36: 00:00:00 | Q36: 0 | R36: 0
A37: 2014-12-27 | D37: 00:00:00 | E37: 0 | F37: 00:00:00 | G37: 0 | H37: 0 | L37: 0 | M37: 0 | O37: 00:00:00 | P37: 00:00:00 | Q37: 0 | R37: 0
A38: 2014-12-28 | D38: 00:00:00 | E38: 0 | F38: 00:00:00 | G38: 0 | H38: 0 | L38: 0 | M38: 0 | O38: 00:00:00 | P38: 00:00:00 | Q38: 0 | R38: 0
A39: 2014-12-29 | D39: 00:00:00 | E39: 0 | F39: 00:00:00 | G39: 0 | H39: 0 | L39: 0 | M39: 0 | O39: 00:00:00 | P39: 00:00:00 | Q39: 0 | R39: 0
A40: 2014-12-30 | D40: 00:00:00 | E40: 0 | F40: 00:00:00 | G40: 0 | H40: 0 | L40: 0 | M40: 0 | O40: 00:00:00 | P40: 00:00:00 | Q40: 0 | R40: 0
A41: 2014-12-31 | D41: 00:00:00 | E41: 0 | F41: 00:00:00 | G41: 0 | H41: 0 | L41: 0 | M41: 0 | O41: 00:00:00 | P41: 00:00:00 | Q41: 0 | R41: 0
A42: TOTAUX: | D42: =SUM(D11:D41) -> 0 | E42: 0 | F42: 0 | G42: 0 | H42: 0 | I42: 0 | J42: =SUM(J10:J41) -> 0 | K42: =SUM(K10:K41) -> 0 | L42: =SUM(L11:L41) -> 0 | M42: =SUM(M11:M41) -> 0
A45: Total KM parcourue selon le Log Sheets: | E45: Qté (L) de Carburant Fournis par CRS: | H45: Prix par Litre de Carburant: | K45: Cout de Carburant = | M45: =IF(G45=0,0,G45*J45) -> 0
K46: Montant d'Allocation = | M46: =M42+M45 -> 0
G48: Allocation des Couts
A49: DSPNs (ayant bénéficié du véhicule) | C49: KM parcourus par DSPN | E49: % utilisation par DSPN | F49: Location | H49: Carburant | J49: Total
A50: 15506209101 | C50: =IF(SUM(C51:D59)>=C45,0,(C45-SUM(C51:D59))) -> 0 | E50: =IF(C$45=0,0,C50/C$45) -> 0 | F50: =E50*M$42 -> 0 | H50: =E50*M$45 -> 0 | J50: =F50+H50 -> 0
A51: 67726200061 | C51: =0.9*C45 -> 0 | E51: =IF(C$45=0,0,C51/C$45) -> 0 | F51: =E51*M$42 -> 0 | H51: =E51*M$45 -> 0 | J51: =F51+H51 -> 0
A52: 87506200065 | C52: =0.07*C45 -> 0 | E52: 0 | F52: 0 | H52: 0 | J52: =F52+H52 -> 0
E53: 0 | F53: 0 | H53: 0 | J53: 0
E54: 0 | F54: 0 | H54: 0 | J54: 0
E55: 0 | F55: 0 | H55: 0 | J55: 0
E56: 0 | F56: 0 | H56: 0 | J56: 0
E57: 0 | F57: 0 | H57: 0 | J57: 0
E58: 0 | F58: 0 | H58: 0 | J58: 0
E59: 0 | F59: 0 | H59: 0 | J59: =F59+H59 -> 0
A60: TOTAL (pour vérification): | C60: =SUM(C50:D59) -> 0 | E60: =SUM(E50:E59) -> 0 | F60: =SUM(F50:G59) -> 0 | H60: =SUM(H50:I59) -> 0 | J60: =SUM(J50:K59) -> 0
A62: ='Rental Vehicle (1)'!A62:E62 -> 0
A63: Repport prepare par (signature et date) | G63: Rapport verifie et approve (signature et date) | K63: Payment approve par (signature et date)

Sheet Rental Vehicle (10)
A1: CRS VEHICULE DE LOCATION -- FICHE D'UTILSATION ET ALLOCATION DES COUTS
A2: Bureau: | B2: =Instructions!G11 -> BOSSANGOA | G2: Véhicule ID, Marque et Modèle: | J2: =IF(Instructions!D37=0,0,Instructions!D37&", "&Instructions!G37) -> 0
A3: Période: | B3: =Instructions!E15 -> DECEMBRE 2014 | G3: Propriétaire du Véhicule:
A5: Code LC: | B5: =Instructions!G13 -> FCFA | D5: Taux Journalier: | F5: =B5 -> FCFA | H5: Supplément Horaire: | K5: =B5 -> FCFA
A7: MAX Heures de Service: | H7: 23:59:00
B9: CALCULE - PAIEMENT POUR LOCATION | I9: DEDUCTIONS | M9: MONTANT DU
A10: Date | B10: Heure Début | C10: Heure Fin | D10: Heures de Service | E10: ="Montant ("&B5&")" -> Montant (FCFA) | F10: Heures Supp | G10: Paiement - Heures Supp | H10: ="Paiement Dû ("&B5&")" -> Paiement Dû (FCFA) | I10: Avances Carburant | J10: Avances Salaire | K10: Autres Avances | L10: Déductions Totales | M10: ="Montant Journalier ("&B5&")" -> Montant Journalier (FCFA) | O10: Total | P10: Reg | Q10: OT1 | R10: OT2
A11: ='Rental Vehicle (1)'!A11 -> 2014-12-01 | D11: =IF(P11=0,0,P11) -> 00:00:00 | E11: =IF(D11=0,0,G$5) -> 0 | F11: =Q11 -> 00:00:00 | G11: =IF(F11=0,0,R11*L$5) -> 0 | H11: =E11+G11 -> 0 | L11: =-SUM(I11:K11) -> 0 | M11: =IF(H11=0,0,H11+L11) -> 0 | O11: =IF(C11=0,0,IF(C11>B11,C11-B11,C11+1-B11)) -> 00:00:00 | P11: =IF(O11>H$7,H$7,O11) -> 00:00:00 | Q11: =IF(O11>P11,O11-P11,0) -> 0 | R11: =(O11-P11)*24 -> 0
A12: =IF(A11=0,0,A11+1) -> 2014-12-02 | D12: =IF(P12=0,0,P12) -> 00:00:00 | E12: =IF(D12=0,0,G$5) -> 0 | F12: =Q12 -> 00:00:00 | G12: 0 | H12: 0 | L12: =-SUM(I12:K12) -> 0 | M12: =IF(H12=0,0,H12+L12) -> 0 | O12: =IF(C12=0,0,IF(C12>B12,C12-B12,C12+1-B12)) -> 00:00:00 | P12: 00:00:00 | Q12: =IF(O12>P12,O12-P12,0) -> 0 | R12: =(O12-P12)*24 -> 0
A13: =IF(A12=0,0,A12+1) -> 2014-12-03 | D13: 00:00:00 | E13: 0 | F13: 00:00:00 | G13: 0 | H13: 0 | L13: 0 | M13: 0 | O13: 00:00:00 | P13: 00:00:00 | Q13: 0 | R13: 0
A14: 2014-12-04 | D14: 00:00:00 | E14: 0 | F14: 00:00:00 | G14: 0 | H14: 0 | L14: 0 | M14: 0 | O14: 00:00:00 | P14: 00:00:00 | Q14: 0 | R14: 0
A15: 2014-12-05 | D15: 00:00:00 | E15: 0 | F15: 00:00:00 | G15: 0 | H15: 0 | L15: 0 | M15: 0 | O15: 00:00:00 | P15: 00:00:00 | Q15: 0 | R15: 0
A16: 2014-12-06 | D16: 00:00:00 | E16: 0 | F16: 00:00:00 | G16: 0 | H16: 0 | L16: 0 | M16: 0 | O16: 00:00:00 | P16: 00:00:00 | Q16: 0 | R16: 0
A17: 2014-12-07 | D17: 00:00:00 | E17: 0 | F17: 00:00:00 | G17: 0 | H17: 0 | L17: 0 | M17: 0 | O17: 00:00:00 | P17: 00:00:00 | Q17: 0 | R17: 0
A18: 2014-12-08 | D18: 00:00:00 | E18: 0 | F18: 00:00:00 | G18: 0 | H18: 0 | L18: 0 | M18: 0 | O18: 00:00:00 | P18: 00:00:00 | Q18: 0 | R18: 0
A19: 2014-12-09 | D19: 00:00:00 | E19: 0 | F19: 00:00:00 | G19: 0 | H19: 0 | L19: 0 | M19: 0 | O19: 00:00:00 | P19: 00:00:00 | Q19: 0 | R19: 0
A20: 2014-12-10 | D20: 00:00:00 | E20: 0 | F20: 00:00:00 | G20: 0 | H20: 0 | L20: 0 | M20: 0 | O20: 00:00:00 | P20: 00:00:00 | Q20: 0 | R20: 0
A21: 2014-12-11 | D21: 00:00:00 | E21: 0 | F21: 00:00:00 | G21: 0 | H21: 0 | L21: 0 | M21: 0 | O21: 00:00:00 | P21: 00:00:00 | Q21: 0 | R21: 0
A22: 2014-12-12 | D22: 00:00:00 | E22: 0 | F22: 00:00:00 | G22: 0 | H22: 0 | L22: 0 | M22: 0 | O22: 00:00:00 | P22: 00:00:00 | Q22: 0 | R22: 0
A23: 2014-12-13 | D23: 00:00:00 | E23: 0 | F23: 00:00:00 | G23: 0 | H23: 0 | L23: 0 | M23: 0 | O23: 00:00:00 | P23: 00:00:00 | Q23: 0 | R23: 0
A24: 2014-12-14 | D24: 00:00:00 | E24: 0 | F24: 00:00:00 | G24: 0 | H24: 0 | L24: 0 | M24: 0 | O24: 00:00:00 | P24: 00:00:00 | Q24: 0 | R24: 0
A25: 2014-12-15 | D25: 00:00:00 | E25: 0 | F25: 00:00:00 | G25: 0 | H25: 0 | L25: 0 | M25: 0 | O25: 00:00:00 | P25: 00:00:00 | Q25: 0 | R25: 0
A26: 2014-12-16 | D26: 00:00:00 | E26: 0 | F26: 00:00:00 | G26: 0 | H26: 0 | L26: 0 | M26: 0 | O26: 00:00:00 | P26: 00:00:00 | Q26: 0 | R26: 0
A27: 2014-12-17 | D27: 00:00:00 | E27: 0 | F27: 00:00:00 | G27: 0 | H27: 0 | L27: 0 | M27: 0 | O27: 00:00:00 | P27: 00:00:00 | Q27: 0 | R27: 0
A28: 2014-12-18 | D28: 00:00:00 | E28: 0 | F28: 00:00:00 | G28: 0 | H28: 0 | L28: 0 | M28: 0 | O28: 00:00:00 | P28: 00:00:00 | Q28: 0 | R28: 0
A29: 2014-12-19 | D29: 00:00:00 | E29: 0 | F29: 00:00:00 | G29: 0 | H29: 0 | L29: 0 | M29: 0 | O29: 00:00:00 | P29: 00:00:00 | Q29: 0 | R29: 0
A30: 2014-12-20 | D30: 00:00:00 | E30: 0 | F30: 00:00:00 | G30: 0 | H30: 0 | L30: 0 | M30: 0 | O30: 00:00:00 | P30: 00:00:00 | Q30: 0 | R30: 0
A31: 2014-12-21 | D31: 00:00:00 | E31: 0 | F31: 00:00:00 | G31: 0 | H31: 0 | L31: 0 | M31: 0 | O31: 00:00:00 | P31: 00:00:00 | Q31: 0 | R31: 0
A32: 2014-12-22 | D32: 00:00:00 | E32: 0 | F32: 00:00:00 | G32: 0 | H32: 0 | L32: 0 | M32: 0 | O32: 00:00:00 | P32: 00:00:00 | Q32: 0 | R32: 0
A33: 2014-12-23 | D33: 00:00:00 | E33: 0 | F33: 00:00:00 | G33: 0 | H33: 0 | L33: 0 | M33: 0 | O33: 00:00:00 | P33: 00:00:00 | Q33: 0 | R33: 0
A34: 2014-12-24 | D34: 00:00:00 | E34: 0 | F34: 00:00:00 | G34: 0 | H34: 0 | L34: 0 | M34: 0 | O34: 00:00:00 | P34: 00:00:00 | Q34: 0 | R34: 0
A35: 2014-12-25 | D35: 00:00:00 | E35: 0 | F35: 00:00:00 | G35: 0 | H35: 0 | L35: 0 | M35: 0 | O35: 00:00:00 | P35: 00:00:00 | Q35: 0 | R35: 0
A36: 2014-12-26 | D36: 00:00:00 | E36: 0 | F36: 00:00:00 | G36: 0 | H36: 0 | L36: 0 | M36: 0 | O36: 00:00:00 | P36: 00:00:00 | Q36: 0 | R36: 0
A37: 2014-12-27 | D37: 00:00:00 | E37: 0 | F37: 00:00:00 | G37: 0 | H37: 0 | L37: 0 | M37: 0 | O37: 00:00:00 | P37: 00:00:00 | Q37: 0 | R37: 0
A38: 2014-12-28 | D38: 00:00:00 | E38: 0 | F38: 00:00:00 | G38: 0 | H38: 0 | L38: 0 | M38: 0 | O38: 00:00:00 | P38: 00:00:00 | Q38: 0 | R38: 0
A39: 2014-12-29 | D39: 00:00:00 | E39: 0 | F39: 00:00:00 | G39: 0 | H39: 0 | L39: 0 | M39: 0 | O39: 00:00:00 | P39: 00:00:00 | Q39: 0 | R39: 0
A40: 2014-12-30 | D40: 00:00:00 | E40: 0 | F40: 00:00:00 | G40: 0 | H40: 0 | L40: 0 | M40: 0 | O40: 00:00:00 | P40: 00:00:00 | Q40: 0 | R40: 0
A41: 2014-12-31 | D41: 00:00:00 | E41: 0 | F41: 00:00:00 | G41: 0 | H41: 0 | L41: 0 | M41: 0 | O41: 00:00:00 | P41: 00:00:00 | Q41: 0 | R41: 0
A42: TOTAUX: | D42: =SUM(D11:D41) -> 0 | E42: 0 | F42: 0 | G42: 0 | H42: 0 | I42: 0 | J42: =SUM(J10:J41) -> 0 | K42: =SUM(K10:K41) -> 0 | L42: =SUM(L11:L41) -> 0 | M42: =SUM(M11:M41) -> 0
A45: Total KM parcourue selon le Log Sheets: | E45: Qté (L) de Carburant Fournis par CRS: | H45: Prix par Litre de Carburant: | K45: Cout de Carburant = | M45: =IF(G45=0,0,G45*J45) -> 0
K46: Montant d'Allocation = | M46: =M42+M45 -> 0
G48: Allocation des Couts
A49: DSPNs (ayant bénéficié du véhicule) | C49: KM parcourus par DSPN | E49: % utilisation par DSPN | F49: Location | H49: Carburant | J49: Total
A50: 15506209101 | C50: =IF(SUM(C51:D59)>=C45,0,(C45-SUM(C51:D59))) -> 0 | E50: =IF(C$45=0,0,C50/C$45) -> 0 | F50: =E50*M$42 -> 0 | H50: =E50*M$45 -> 0 | J50: =F50+H50 -> 0
A51: 67726200061 | C51: =0.9*C45 -> 0 | E51: =IF(C$45=0,0,C51/C$45) -> 0 | F51: =E51*M$42 -> 0 | H51: =E51*M$45 -> 0 | J51: =F51+H51 -> 0
A52: 87506200065 | C52: =0.07*C45 -> 0 | E52: 0 | F52: 0 | H52: 0 | J52: =F52+H52 -> 0
E53: 0 | F53: 0 | H53: 0 | J53: 0
E54: 0 | F54: 0 | H54: 0 | J54: 0
E55: 0 | F55: 0 | H55: 0 | J55: 0
E56: 0 | F56: 0 | H56: 0 | J56: 0
E57: 0 | F57: 0 | H57: 0 | J57: 0
E58: 0 | F58: 0 | H58: 0 | J58: 0
E59: 0 | F59: 0 | H59: 0 | J59: =F59+H59 -> 0
A60: TOTAL (pour vérification): | C60: =SUM(C50:D59) -> 0 | E60: =SUM(E50:E59) -> 0 | F60: =SUM(F50:G59) -> 0 | H60: =SUM(H50:I59) -> 0 | J60: =SUM(J50:K59) -> 0
A62: ='Rental Vehicle (1)'!A62:E62 -> 0
A63: Repport prepare par (signature et date) | G63: Rapport verifie et approve (signature et date) | K63: Payment approve par (signature et date)

Sheet Rental Vehicle (11)
A1: CRS VEHICULE DE LOCATION -- FICHE D'UTILSATION ET ALLOCATION DES COUTS
A2: Bureau: | B2: =Instructions!G11 -> BOSSANGOA | G2: Véhicule ID, Marque et Modèle: | J2: =IF(Instructions!D39=0,0,Instructions!D39&", "&Instructions!G39) -> 0
A3: Période: | B3: =Instructions!E15 -> DECEMBRE 2014 | G3: Propriétaire du Véhicule:
A5: Code LC: | B5: =Instructions!G13 -> FCFA | D5: Taux Journalier: | F5: =B5 -> FCFA | H5: Supplément Horaire: | K5: =B5 -> FCFA
A7: MAX Heures de Service: | H7: 23:59:00
B9: CALCULE - PAIEMENT POUR LOCATION | I9: DEDUCTIONS | M9: MONTANT DU
A10: Date | B10: Heure Début | C10: Heure Fin | D10: Heures de Service | E10: ="Montant ("&B5&")" -> Montant (FCFA) | F10: Heures Supp | G10: Paiement - Heures Supp | H10: ="Paiement Dû ("&B5&")" -> Paiement Dû (FCFA) | I10: Avances Carburant | J10: Avances Salaire | K10: Autres Avances | L10: Déductions Totales | M10: ="Montant Journalier ("&B5&")" -> Montant Journalier (FCFA) | O10: Total | P10: Reg | Q10: OT1 | R10: OT2
A11: ='Rental Vehicle (1)'!A11 -> 2014-12-01 | D11: =IF(P11=0,0,P11) -> 00:00:00 | E11: =IF(D11=0,0,G$5) -> 0 | F11: =Q11 -> 00:00:00 | G11: =IF(F11=0,0,R11*L$5) -> 0 | H11: =E11+G11 -> 0 | L11: =-SUM(I11:K11) -> 0 | M11: =IF(H11=0,0,H11+L11) -> 0 | O11: =IF(C11=0,0,IF(C11>B11,C11-B11,C11+1-B11)) -> 00:00:00 | P11: =IF(O11>H$7,H$7,O11) -> 00:00:00 | Q11: =IF(O11>P11,O11-P11,0) -> 0 | R11: =(O11-P11)*24 -> 0
A12: =IF(A11=0,0,A11+1) -> 2014-12-02 | D12: =IF(P12=0,0,P12) -> 00:00:00 | E12: =IF(D12=0,0,G$5) -> 0 | F12: =Q12 -> 00:00:00 | G12: 0 | H12: 0 | L12: =-SUM(I12:K12) -> 0 | M12: =IF(H12=0,0,H12+L12) -> 0 | O12: =IF(C12=0,0,IF(C12>B12,C12-B12,C12+1-B12)) -> 00:00:00 | P12: 00:00:00 | Q12: =IF(O12>P12,O12-P12,0) -> 0 | R12: =(O12-P12)*24 -> 0
A13: =IF(A12=0,0,A12+1) -> 2014-12-03 | D13: 00:00:00 | E13: 0 | F13: 00:00:00 | G13: 0 | H13: 0 | L13: 0 | M13: 0 | O13: 00:00:00 | P13: 00:00:00 | Q13: 0 | R13: 0
A14: 2014-12-04 | D14: 00:00:00 | E14: 0 | F14: 00:00:00 | G14: 0 | H14: 0 | L14: 0 | M14: 0 | O14: 00:00:00 | P14: 00:00:00 | Q14: 0 | R14: 0
A15: 2014-12-05 | D15: 00:00:00 | E15: 0 | F15: 00:00:00 | G15: 0 | H15: 0 | L15: 0 | M15: 0 | O15: 00:00:00 | P15: 00:00:00 | Q15: 0 | R15: 0
A16: 2014-12-06 | D16: 00:00:00 | E16: 0 | F16: 00:00:00 | G16: 0 | H16: 0 | L16: 0 | M16: 0 | O16: 00:00:00 | P16: 00:00:00 | Q16: 0 | R16: 0
A17: 2014-12-07 | D17: 00:00:00 | E17: 0 | F17: 00:00:00 | G17: 0 | H17: 0 | L17: 0 | M17: 0 | O17: 00:00:00 | P17: 00:00:00 | Q17: 0 | R17: 0
A18: 2014-12-08 | D18: 00:00:00 | E18: 0 | F18: 00:00:00 | G18: 0 | H18: 0 | L18: 0 | M18: 0 | O18: 00:00:00 | P18: 00:00:00 | Q18: 0 | R18: 0
A19: 2014-12-09 | D19: 00:00:00 | E19: 0 | F19: 00:00:00 | G19: 0 | H19: 0 | L19: 0 | M19: 0 | O19: 00:00:00 | P19: 00:00:00 | Q19: 0 | R19: 0
A20: 2014-12-10 | D20: 00:00:00 | E20: 0 | F20: 00:00:00 | G20: 0 | H20: 0 | L20: 0 | M20: 0 | O20: 00:00:00 | P20: 00:00:00 | Q20: 0 | R20: 0
A21: 2014-12-11 | D21: 00:00:00 | E21: 0 | F21: 00:00:00 | G21: 0 | H21: 0 | L21: 0 | M21: 0 | O21: 00:00:00 | P21: 00:00:00 | Q21: 0 | R21: 0
A22: 2014-12-12 | D22: 00:00:00 | E22: 0 | F22: 00:00:00 | G22: 0 | H22: 0 | L22: 0 | M22: 0 | O22: 00:00:00 | P22: 00:00:00 | Q22: 0 | R22: 0
A23: 2014-12-13 | D23: 00:00:00 | E23: 0 | F23: 00:00:00 | G23: 0 | H23: 0 | L23: 0 | M23: 0 | O23: 00:00:00 | P23: 00:00:00 | Q23: 0 | R23: 0
A24: 2014-12-14 | D24: 00:00:00 | E24: 0 | F24: 00:00:00 | G24: 0 | H24: 0 | L24: 0 | M24: 0 | O24: 00:00:00 | P24: 00:00:00 | Q24: 0 | R24: 0
A25: 2014-12-15 | D25: 00:00:00 | E25: 0 | F25: 00:00:00 | G25: 0 | H25: 0 | L25: 0 | M25: 0 | O25: 00:00:00 | P25: 00:00:00 | Q25: 0 | R25: 0
A26: 2014-12-16 | D26: 00:00:00 | E26: 0 | F26: 00:00:00 | G26: 0 | H26: 0 | L26: 0 | M26: 0 | O26: 00:00:00 | P26: 00:00:00 | Q26: 0 | R26: 0
A27: 2014-12-17 | D27: 00:00:00 | E27: 0 | F27: 00:00:00 | G27: 0 | H27: 0 | L27: 0 | M27: 0 | O27: 00:00:00 | P27: 00:00:00 | Q27: 0 | R27: 0
A28: 2014-12-18 | D28: 00:00:00 | E28: 0 | F28: 00:00:00 | G28: 0 | H28: 0 | L28: 0 | M28: 0 | O28: 00:00:00 | P28: 00:00:00 | Q28: 0 | R28: 0
A29: 2014-12-19 | D29: 00:00:00 | E29: 0 | F29: 00:00:00 | G29: 0 | H29: 0 | L29: 0 | M29: 0 | O29: 00:00:00 | P29: 00:00:00 | Q29: 0 | R29: 0
A30: 2014-12-20 | D30: 00:00:00 | E30: 0 | F30: 00:00:00 | G30: 0 | H30: 0 | L30: 0 | M30: 0 | O30: 00:00:00 | P30: 00:00:00 | Q30: 0 | R30: 0
A31: 2014-12-21 | D31: 00:00:00 | E31: 0 | F31: 00:00:00 | G31: 0 | H31: 0 | L31: 0 | M31: 0 | O31: 00:00:00 | P31: 00:00:00 | Q31: 0 | R31: 0
A32: 2014-12-22 | D32: 00:00:00 | E32: 0 | F32: 00:00:00 | G32: 0 | H32: 0 | L32: 0 | M32: 0 | O32: 00:00:00 | P32: 00:00:00 | Q32: 0 | R32: 0
A33: 2014-12-23 | D33: 00:00:00 | E33: 0 | F33: 00:00:00 | G33: 0 | H33: 0 | L33: 0 | M33: 0 | O33: 00:00:00 | P33: 00:00:00 | Q33: 0 | R33: 0
A34: 2014-12-24 | D34: 00:00:00 | E34: 0 | F34: 00:00:00 | G34: 0 | H34: 0 | L34: 0 | M34: 0 | O34: 00:00:00 | P34: 00:00:00 | Q34: 0 | R34: 0
A35: 2014-12-25 | D35: 00:00:00 | E35: 0 | F35: 00:00:00 | G35: 0 | H35: 0 | L35: 0 | M35: 0 | O35: 00:00:00 | P35: 00:00:00 | Q35: 0 | R35: 0
A36: 2014-12-26 | D36: 00:00:00 | E36: 0 | F36: 00:00:00 | G36: 0 | H36: 0 | L36: 0 | M36: 0 | O36: 00:00:00 | P36: 00:00:00 | Q36: 0 | R36: 0
A37: 2014-12-27 | D37: 00:00:00 | E37: 0 | F37: 00:00:00 | G37: 0 | H37: 0 | L37: 0 | M37: 0 | O37: 00:00:00 | P37: 00:00:00 | Q37: 0 | R37: 0
A38: 2014-12-28 | D38: 00:00:00 | E38: 0 | F38: 00:00:00 | G38: 0 | H38: 0 | L38: 0 | M38: 0 | O38: 00:00:00 | P38: 00:00:00 | Q38: 0 | R38: 0
A39: 2014-12-29 | D39: 00:00:00 | E39: 0 | F39: 00:00:00 | G39: 0 | H39: 0 | L39: 0 | M39: 0 | O39: 00:00:00 | P39: 00:00:00 | Q39: 0 | R39: 0
A40: 2014-12-30 | D40: 00:00:00 | E40: 0 | F40: 00:00:00 | G40: 0 | H40: 0 | L40: 0 | M40: 0 | O40: 00:00:00 | P40: 00:00:00 | Q40: 0 | R40: 0
A41: 2014-12-31 | D41: 00:00:00 | E41: 0 | F41: 00:00:00 | G41: 0 | H41: 0 | L41: 0 | M41: 0 | O41: 00:00:00 | P41: 00:00:00 | Q41: 0 | R41: 0
A42: TOTAUX: | D42: =SUM(D11:D41) -> 0 | E42: 0 | F42: 0 | G42: 0 | H42: 0 | I42: 0 | J42: =SUM(J10:J41) -> 0 | K42: =SUM(K10:K41) -> 0 | L42: =SUM(L11:L41) -> 0 | M42: =SUM(M11:M41) -> 0
A45: Total KM parcourue selon le Log Sheets: | E45: Qté (L) de Carburant Fournis par CRS: | H45: Prix par Litre de Carburant: | K45: Cout de Carburant = | M45: =IF(G45=0,0,G45*J45) -> 0
K46: Montant d'Allocation = | M46: =M42+M45 -> 0
G48: Allocation des Couts
A49: DSPNs (ayant bénéficié du véhicule) | C49: KM parcourus par DSPN | E49: % utilisation par DSPN | F49: Location | H49: Carburant | J49: Total
A50: 15506209101 | C50: =IF(SUM(C51:D59)>=C45,0,(C45-SUM(C51:D59))) -> 0 | E50: =IF(C$45=0,0,C50/C$45) -> 0 | F50: =E50*M$42 -> 0 | H50: =E50*M$45 -> 0 | J50: =F50+H50 -> 0
A51: 67726200061 | C51: =0.9*C45 -> 0 | E51: =IF(C$45=0,0,C51/C$45) -> 0 | F51: =E51*M$42 -> 0 | H51: =E51*M$45 -> 0 | J51: =F51+H51 -> 0
A52: 87506200065 | C52: =0.07*C45 -> 0 | E52: 0 | F52: 0 | H52: 0 | J52: =F52+H52 -> 0
E53: 0 | F53: 0 | H53: 0 | J53: 0
E54: 0 | F54: 0 | H54: 0 | J54: 0
E55: 0 | F55: 0 | H55: 0 | J55: 0
E56: 0 | F56: 0 | H56: 0 | J56: 0
E57: 0 | F57: 0 | H57: 0 | J57: 0
E58: 0 | F58: 0 | H58: 0 | J58: 0
E59: 0 | F59: 0 | H59: 0 | J59: =F59+H59 -> 0
A60: TOTAL (pour vérification): | C60: =SUM(C50:D59) -> 0 | E60: =SUM(E50:E59) -> 0 | F60: =SUM(F50:G59) -> 0 | H60: =SUM(H50:I59) -> 0 | J60: =SUM(J50:K59) -> 0
A62: ='Rental Vehicle (1)'!A62:E62 -> 0
A63: Repport prepare par (signature et date) | G63: Rapport verifie et approve (signature et date) | K63: Payment approve par (signature et date)

Sheet Rental Vehicle (12)
A1: CRS VEHICULE DE LOCATION -- FICHE D'UTILSATION ET ALLOCATION DES COUTS
A2: Bureau: | B2: =Instructions!G11 -> BOSSANGOA | G2: Véhicule ID, Marque et Modèle: | J2: =IF(Instructions!D41=0,0,Instructions!D41&", "&Instructions!G41) -> 0
A3: Période: | B3: =Instructions!E15 -> DECEMBRE 2014 | G3: Propriétaire du Véhicule:
A5: Code LC: | B5: =Instructions!G13 -> FCFA | D5: Taux Journalier: | F5: =B5 -> FCFA | H5: Supplément Horaire: | K5: =B5 -> FCFA
A7: MAX Heures de Service: | H7: 23:59:00
B9: CALCULE - PAIEMENT POUR LOCATION | I9: DEDUCTIONS | M9: MONTANT DU
A10: Date | B10: Heure Début | C10: Heure Fin | D10: Heures de Service | E10: ="Montant ("&B5&")" -> Montant (FCFA) | F10: Heures Supp | G10: Paiement - Heures Supp | H10: ="Paiement Dû ("&B5&")" -> Paiement Dû (FCFA) | I10: Avances Carburant | J10: Avances Salaire | K10: Autres Avances | L10: Déductions Totales | M10: ="Montant Journalier ("&B5&")" -> Montant Journalier (FCFA) | O10: Total | P10: Reg | Q10: OT1 | R10: OT2
A11: ='Rental Vehicle (1)'!A11 -> 2014-12-01 | D11: =IF(P11=0,0,P11) -> 00:00:00 | E11: =IF(D11=0,0,G$5) -> 0 | F11: =Q11 -> 00:00:00 | G11: =IF(F11=0,0,R11*L$5) -> 0 | H11: =E11+G11 -> 0 | L11: =-SUM(I11:K11) -> 0 | M11: =IF(H11=0,0,H11+L11) -> 0 | O11: =IF(C11=0,0,IF(C11>B11,C11-B11,C11+1-B11)) -> 00:00:00 | P11: =IF(O11>H$7,H$7,O11) -> 00:00:00 | Q11: =IF(O11>P11,O11-P11,0) -> 0 | R11: =(O11-P11)*24 -> 0
A12: =IF(A11=0,0,A11+1) -> 2014-12-02 | D12: =IF(P12=0,0,P12) -> 00:00:00 | E12: =IF(D12=0,0,G$5) -> 0 | F12: =Q12 -> 00:00:00 | G12: 0 | H12: 0 | L12: =-SUM(I12:K12) -> 0 | M12: =IF(H12=0,0,H12+L12) -> 0 | O12: =IF(C12=0,0,IF(C12>B12,C12-B12,C12+1-B12)) -> 00:00:00 | P12: 00:00:00 | Q12: =IF(O12>P12,O12-P12,0) -> 0 | R12: =(O12-P12)*24 -> 0
A13: =IF(A12=0,0,A12+1) -> 2014-12-03 | D13: 00:00:00 | E13: 0 | F13: 00:00:00 | G13: 0 | H13: 0 | L13: 0 | M13: 0 | O13: 00:00:00 | P13: 00:00:00 | Q13: 0 | R13: 0
A14: 2014-12-04 | D14: 00:00:00 | E14: 0 | F14: 00:00:00 | G14: 0 | H14: 0 | L14: 0 | M14: 0 | O14: 00:00:00 | P14: 00:00:00 | Q14: 0 | R14: 0
A15: 2014-12-05 | D15: 00:00:00 | E15: 0 | F15: 00:00:00 | G15: 0 | H15: 0 | L15: 0 | M15: 0 | O15: 00:00:00 | P15: 00:00:00 | Q15: 0 | R15: 0
A16: 2014-12-06 | D16: 00:00:00 | E16: 0 | F16: 00:00:00 | G16: 0 | H16: 0 | L16: 0 | M16: 0 | O16: 00:00:00 | P16: 00:00:00 | Q16: 0 | R16: 0
A17: 2014-12-07 | D17: 00:00:00 | E17: 0 | F17: 00:00:00 | G17: 0 | H17: 0 | L17: 0 | M17: 0 | O17: 00:00:00 | P17: 00:00:00 | Q17: 0 | R17: 0
A18: 2014-12-08 | D18: 00:00:00 | E18: 0 | F18: 00:00:00 | G18: 0 | H18: 0 | L18: 0 | M18: 0 | O18: 00:00:00 | P18: 00:00:00 | Q18: 0 | R18: 0
A19: 2014-12-09 | D19: 00:00:00 | E19: 0 | F19: 00:00:00 | G19: 0 | H19: 0 | L19: 0 | M19: 0 | O19: 00:00:00 | P19: 00:00:00 | Q19: 0 | R19: 0
A20: 2014-12-10 | D20: 00:00:00 | E20: 0 | F20: 00:00:00 | G20: 0 | H20: 0 | L20: 0 | M20: 0 | O20: 00:00:00 | P20: 00:00:00 | Q20: 0 | R20: 0
A21: 2014-12-11 | D21: 00:00:00 | E21: 0 | F21: 00:00:00 | G21: 0 | H21: 0 | L21: 0 | M21: 0 | O21: 00:00:00 | P21: 00:00:00 | Q21: 0 | R21: 0
A22: 2014-12-12 | D22: 00:00:00 | E22: 0 | F22: 00:00:00 | G22: 0 | H22: 0 | L22: 0 | M22: 0 | O22: 00:00:00 | P22: 00:00:00 | Q22: 0 | R22: 0
A23: 2014-12-13 | D23: 00:00:00 | E23: 0 | F23: 00:00:00 | G23: 0 | H23: 0 | L23: 0 | M23: 0 | O23: 00:00:00 | P23: 00:00:00 | Q23: 0 | R23: 0
A24: 2014-12-14 | D24: 00:00:00 | E24: 0 | F24: 00:00:00 | G24: 0 | H24: 0 | L24: 0 | M24: 0 | O24: 00:00:00 | P24: 00:00:00 | Q24: 0 | R24: 0
A25: 2014-12-15 | D25: 00:00:00 | E25: 0 | F25: 00:00:00 | G25: 0 | H25: 0 | L25: 0 | M25: 0 | O25: 00:00:00 | P25: 00:00:00 | Q25: 0 | R25: 0
A26: 2014-12-16 | D26: 00:00:00 | E26: 0 | F26: 00:00:00 | G26: 0 | H26: 0 | L26: 0 | M26: 0 | O26: 00:00:00 | P26: 00:00:00 | Q26: 0 | R26: 0
A27: 2014-12-17 | D27: 00:00:00 | E27: 0 | F27: 00:00:00 | G27: 0 | H27: 0 | L27: 0 | M27: 0 | O27: 00:00:00 | P27: 00:00:00 | Q27: 0 | R27: 0
A28: 2014-12-18 | D28: 00:00:00 | E28: 0 | F28: 00:00:00 | G28: 0 | H28: 0 | L28: 0 | M28: 0 | O28: 00:00:00 | P28: 00:00:00 | Q28: 0 | R28: 0
A29: 2014-12-19 | D29: 00:00:00 | E29: 0 | F29: 00:00:00 | G29: 0 | H29: 0 | L29: 0 | M29: 0 | O29: 00:00:00 | P29: 00:00:00 | Q29: 0 | R29: 0
A30: 2014-12-20 | D30: 00:00:00 | E30: 0 | F30: 00:00:00 | G30: 0 | H30: 0 | L30: 0 | M30: 0 | O30: 00:00:00 | P30: 00:00:00 | Q30: 0 | R30: 0
A31: 2014-12-21 | D31: 00:00:00 | E31: 0 | F31: 00:00:00 | G31: 0 | H31: 0 | L31: 0 | M31: 0 | O31: 00:00:00 | P31: 00:00:00 | Q31: 0 | R31: 0
A32: 2014-12-22 | D32: 00:00:00 | E32: 0 | F32: 00:00:00 | G32: 0 | H32: 0 | L32: 0 | M32: 0 | O32: 00:00:00 | P32: 00:00:00 | Q32: 0 | R32: 0
A33: 2014-12-23 | D33: 00:00:00 | E33: 0 | F33: 00:00:00 | G33: 0 | H33: 0 | L33: 0 | M33: 0 | O33: 00:00:00 | P33: 00:00:00 | Q33: 0 | R33: 0
A34: 2014-12-24 | D34: 00:00:00 | E34: 0 | F34: 00:00:00 | G34: 0 | H34: 0 | L34: 0 | M34: 0 | O34: 00:00:00 | P34: 00:00:00 | Q34: 0 | R34: 0
A35: 2014-12-25 | D35: 00:00:00 | E35: 0 | F35: 00:00:00 | G35: 0 | H35: 0 | L35: 0 | M35: 0 | O35: 00:00:00 | P35: 00:00:00 | Q35: 0 | R35: 0
A36: 2014-12-26 | D36: 00:00:00 | E36: 0 | F36: 00:00:00 | G36: 0 | H36: 0 | L36: 0 | M36: 0 | O36: 00:00:00 | P36: 00:00:00 | Q36: 0 | R36: 0
A37: 2014-12-27 | D37: 00:00:00 | E37: 0 | F37: 00:00:00 | G37: 0 | H37: 0 | L37: 0 | M37: 0 | O37: 00:00:00 | P37: 00:00:00 | Q37: 0 | R37: 0
A38: 2014-12-28 | D38: 00:00:00 | E38: 0 | F38: 00:00:00 | G38: 0 | H38: 0 | L38: 0 | M38: 0 | O38: 00:00:00 | P38: 00:00:00 | Q38: 0 | R38: 0
A39: 2014-12-29 | D39: 00:00:00 | E39: 0 | F39: 00:00:00 | G39: 0 | H39: 0 | L39: 0 | M39: 0 | O39: 00:00:00 | P39: 00:00:00 | Q39: 0 | R39: 0
A40: 2014-12-30 | D40: 00:00:00 | E40: 0 | F40: 00:00:00 | G40: 0 | H40: 0 | L40: 0 | M40: 0 | O40: 00:00:00 | P40: 00:00:00 | Q40: 0 | R40: 0
A41: 2014-12-31 | D41: 00:00:00 | E41: 0 | F41: 00:00:00 | G41: 0 | H41: 0 | L41: 0 | M41: 0 | O41: 00:00:00 | P41: 00:00:00 | Q41: 0 | R41: 0
A42: TOTAUX: | D42: =SUM(D11:D41) -> 0 | E42: 0 | F42: 0 | G42: 0 | H42: 0 | I42: 0 | J42: =SUM(J10:J41) -> 0 | K42: =SUM(K10:K41) -> 0 | L42: =SUM(L11:L41) -> 0 | M42: =SUM(M11:M41) -> 0
A45: Total KM parcourue selon le Log Sheets: | E45: Qté (L) de Carburant Fournis par CRS: | H45: Prix par Litre de Carburant: | K45: Cout de Carburant = | M45: =IF(G45=0,0,G45*J45) -> 0
K46: Montant d'Allocation = | M46: =M42+M45 -> 0
G48: Allocation des Couts
A49: DSPNs (ayant bénéficié du véhicule) | C49: KM parcourus par DSPN | E49: % utilisation par DSPN | F49: Location | H49: Carburant | J49: Total
A50: 15506209101 | C50: =IF(SUM(C51:D59)>=C45,0,(C45-SUM(C51:D59))) -> 0 | E50: =IF(C$45=0,0,C50/C$45) -> 0 | F50: =E50*M$42 -> 0 | H50: =E50*M$45 -> 0 | J50: =F50+H50 -> 0
A51: 67726200061 | C51: =0.9*C45 -> 0 | E51: =IF(C$45=0,0,C51/C$45) -> 0 | F51: =E51*M$42 -> 0 | H51: =E51*M$45 -> 0 | J51: =F51+H51 -> 0
A52: 87506200065 | C52: =0.07*C45 -> 0 | E52: 0 | F52: 0 | H52: 0 | J52: =F52+H52 -> 0
E53: 0 | F53: 0 | H53: 0 | J53: 0
E54: 0 | F54: 0 | H54: 0 | J54: 0
E55: 0 | F55: 0 | H55: 0 | J55: 0
E56: 0 | F56: 0 | H56: 0 | J56: 0
E57: 0 | F57: 0 | H57: 0 | J57: 0
E58: 0 | F58: 0 | H58: 0 | J58: 0
E59: 0 | F59: 0 | H59: 0 | J59: =F59+H59 -> 0
A60: TOTAL (pour vérification): | C60: =SUM(C50:D59) -> 0 | E60: =SUM(E50:E59) -> 0 | F60: =SUM(F50:G59) -> 0 | H60: =SUM(H50:I59) -> 0 | J60: =SUM(J50:K59) -> 0
A62: ='Rental Vehicle (1)'!A62:E62 -> 0
A63: Repport prepare par (signature et date) | G63: Rapport verifie et approve (signature et date) | K63: Payment approve par (signature et date)
